{"text_format":"2","workbook":"xlsx","n_sheets":11,"sheets":["Resumo Orcameno","Serviços Preliminares a Adm_RES","Cristalino Completo","Poços Sedimentares","COMPOSIÇÕES","CPU POÇOS","DESLOCAMENTOS","RESUMO","VEICULOS","BDI","Encargos Sociais"],"not_rendered":{"charts":0,"images":1,"macros":0,"external_links":3,"defined_names":323,"comments":0,"pivot_tables":0},"unopened":[],"bounds":{"document_bytes":16777216,"sheet_cells":100000,"run_cost":"one","rows_first":2000,"rows_last":500,"rows_between":2000,"halvings":0,"cell_chars":16384,"cell_head_chars":4096},"cells_cut":0,"cells_raw":0,"read":"whole","date_system":"1900"}

{"sheet":"Resumo Orcameno","index":0,"n_rows":20,"n_cols":8,"rows_kept":20,"cut":false,"hidden":false,"merged":[[9,0,9,3],[9,4,9,5],[9,6,9,7],[1,0,4,7],[5,0,6,2],[5,3,6,7],[7,0,8,2],[7,3,8,7],[10,0,10,7],[11,0,12,0],[11,1,12,1],[11,2,12,2],[11,3,12,3],[11,4,12,4],[11,5,12,5],[11,6,11,7]]}
[]
[]
[]
[]
[]
["Obra:  ",null,null," Perfuração e Instalação de Poços Tubulares Profundos"]
[]
["Local:",null,null,"Comunidades dispersas situadas na zona rural dos municípios de Afogados da Ingazeira, Afrânio, Agrestina, Água Preta, Águas Belas, Alagoinha, Altinho, Angelim, Araripina, Arcoverde, Barra de Guabiraba, Barreiros, Belém de Maria, Belém do São Francisco, Betânia, Bezerros, Bodocó, Bom Conselho, Bonito, Brejão, Brejinho, Buíque, Cabrobó, Cachoeirinha, Caetés, Calçado, Calumbi, Camocim de São Félix, Canhotinho, Capoeiras, Carnaíba, Carnaubeira da Penha, Caruaru, Catende, Cedro, Correntes, Cupira, Custódia, Dormentes, Exu, Flores, Floresta, Gameleira, Garanhuns, Granito, Iati, Ibimirim, Ibirajuba, Iguaracy, Inajá, Ingazeira, Ipubi, Itacuruba, Itaíba, Itapetim, Jaqueira, Jatobá, Joaquim Nabuco, Jucati, Jupi, Jurema, Lagoa do Ouro, Lagoa dos Gatos, Lagoa Grande, Lajedo, Manari, Maraial, Mirandiba, Moreilândia, Orocó, Ouricuri, Palmares, Palmeirinha, Panelas, Paranatama, Parnamirim, Pedra, Pesqueira, Petrolândia, Petrolina, Quipapá, Quixaba, Rio Formoso, Salgueiro, Saloá, Sanharó, Santa Cruz, Santa Cruz da Baixa Verde, Santa Filomena, Santa Maria da Boa Vista, Santa Terezinha, São Benedito do Sul, São Bento do Uma, São Caitano, São João, São Joaquim do Monte, São José da Coroa Grande, São José do Belmonte, São José do Egito, Serra Talhada, Serrita, Sertânia, Solidão, Tabira, Tacaimbó, Tacaratu, Tamandaré, Terezinha, Terra Nova, Trindade, Triunfo, Tupanatinga, Tuparetama, Venturosa, Verdejante e Xexéu, no estado de Pernambuco, e Crato e Salitre, no estado do Ceará, inseridos na área de atuação da 3ª Superintendência Regional da CODEVASF."]
[]
[{"$nulls":4},"Total das Obras",null,14961086.699999999]
["PLANILHA ORÇAMENTÁRIA - NÃO DESONERADA"]
["codigo","ITEM","COD","DESCRIÇÃO DOS SERVIÇOS","UNID.","QUANT.","PREÇO (R$)"]
[{"$nulls":6},"UNITÁRIO C/BDI","TOTAL COM BDI"]
[null,"I.",null,"SERVIÇOS PRELIMINARES"]
[null,1,null,"Serviços Preliminares, Administração Local e Fiscalização.","un",1,248504.66,248504.66]
[null,"II.",null,"POÇOS TUBULARES PROFUNDOS"]
[null,"II.A",null,"Poços Cristalinos "]
[null,2,null,"GRUPO 1: Perfuração e Instalação.","un",200,36327.01,7265402.6100000003]
[null,"II.B",null,"Poços Sedimentares","un"]
[null,5,null,"GRUPO 4: Poços Sedimentares - Perfuração e Instalação","un",42,177313.79,7447179.1399999997]

{"sheet":"Serviços Preliminares a Adm_RES","index":1,"n_rows":28,"n_cols":8,"rows_kept":28,"cut":false,"hidden":false,"merged":[[9,0,9,3],[9,4,9,5],[9,6,9,7],[10,0,10,7],[11,0,12,0],[11,1,12,1],[11,3,12,3],[11,4,12,4],[11,5,12,5],[11,6,11,7],[1,0,4,7],[5,0,6,2],[5,3,6,7],[7,0,8,2],[7,3,8,7],[21,6,21,7],[20,0,20,7],[11,2,12,2],[27,6,27,7],[22,6,22,7],[23,6,23,7],[24,6,24,7],[26,6,26,7]]}
[]
[]
[]
[]
[]
["Obra:  ",null,null," Perfuração e Instalação de Poços Tubulares Profundos"]
[]
["Local:",null,null,"Comunidades dispersas situadas na zona rural dos municípios de Afogados da Ingazeira, Afrânio, Agrestina, Água Preta, Águas Belas, Alagoinha, Altinho, Angelim, Araripina, Arcoverde, Barra de Guabiraba, Barreiros, Belém de Maria, Belém do São Francisco, Betânia, Bezerros, Bodocó, Bom Conselho, Bonito, Brejão, Brejinho, Buíque, Cabrobó, Cachoeirinha, Caetés, Calçado, Calumbi, Camocim de São Félix, Canhotinho, Capoeiras, Carnaíba, Carnaubeira da Penha, Caruaru, Catende, Cedro, Correntes, Cupira, Custódia, Dormentes, Exu, Flores, Floresta, Gameleira, Garanhuns, Granito, Iati, Ibimirim, Ibirajuba, Iguaracy, Inajá, Ingazeira, Ipubi, Itacuruba, Itaíba, Itapetim, Jaqueira, Jatobá, Joaquim Nabuco, Jucati, Jupi, Jurema, Lagoa do Ouro, Lagoa dos Gatos, Lagoa Grande, Lajedo, Manari, Maraial, Mirandiba, Moreilândia, Orocó, Ouricuri, Palmares, Palmeirinha, Panelas, Paranatama, Parnamirim, Pedra, Pesqueira, Petrolândia, Petrolina, Quipapá, Quixaba, Rio Formoso, Salgueiro, Saloá, Sanharó, Santa Cruz, Santa Cruz da Baixa Verde, Santa Filomena, Santa Maria da Boa Vista, Santa Terezinha, São Benedito do Sul, São Bento do Uma, São Caitano, São João, São Joaquim do Monte, São José da Coroa Grande, São José do Belmonte, São José do Egito, Serra Talhada, Serrita, Sertânia, Solidão, Tabira, Tacaimbó, Tacaratu, Tamandaré, Terezinha, Terra Nova, Trindade, Triunfo, Tupanatinga, Tuparetama, Venturosa, Verdejante e Xexéu, no estado de Pernambuco, e Crato e Salitre, no estado do Ceará, inseridos na área de atuação da 3ª Superintendência Regional da CODEVASF."]
[]
[{"$nulls":4},"Total das Obras",null,14961086.41]
["PLANILHA ORÇAMENTÁRIA - NÃO DESONERADA"]
["codigo","ITEM","COD","DESCRIÇÃO DOS SERVIÇOS","UNID.","QUANT.","PREÇO (R$)"]
[{"$nulls":6},"UNITÁRIO C/BDI","TOTAL COM BDI"]
[null,1,null,"Serviços Preliminares",null,null,null,248504.66]
[null,"1.1","CPU-01","Mobilização de Equipamentos, Materiais e Pessoal.","un",72,599.99,43199.28]
[null,"1.2","CPU-02","Desmobilização de Equipamentos, Materiais e Pessoal.","un",2,1094.2,2188.4]
[null,"1.3","CPU-03","Fornecimento, montagem e conservação de placa de identificação de obra padrão  (3m x 2m).","m²",55,433.92,23865.599999999999]
[null,"1.4","CPU-48","Fornecimento de Veículo 4x4 à fiscalização com seguro, taxas de licenciamento, revisão periódica, manutenção, combustível e pneus.","mês",18,5371.67,96690.06]
[null,"1.5","CPU-47","Fornecimento de material de apoio a fiscalização (GPS Portatil e Notebook).","mês",18,165.64,2981.52]
[null,"1.6","CPU-04","Administração local da obra.","un",1,79579.8,79579.8]
["EXECUÇÃO DOS POÇOS"]
[null,"ITEM",null,"DESCRIÇÃO DOS SERVIÇOS","UNID.","QUANT."," TOTAL C/ BDI (R$)"]
[null,2,null,"Poços Cristalinos - Completos",null,null,7265402.6100000003]
[null,"2.1",null,"Poços Cristalinos profundidade média 60m - PERFURAÇÃO","un",200,2094678.33]
[null,"2.2",null,"Poços Cristalinos - Montagem e Instalação com bomba submersa.","un",200,5170724.28]
[null,5,null,"Poços Sedimentares - Completos",null,null,null,7447179.1399999997]
[null,"5.1",null,"Poços Sedimentares profundidade média 180m","un",42,4144184.38]
[null,"5.2",null,"Poços Sedimentares - Montagem e Instalação","un",42,3302994.76]

{"sheet":"Cristalino Completo","index":2,"n_rows":54,"n_cols":8,"rows_kept":54,"cut":false,"hidden":false,"merged":[[17,6,17,7],[17,2,18,2],[16,0,16,7],[17,0,18,0],[17,1,18,1],[17,3,18,3],[17,4,18,4],[17,5,18,5],[13,4,13,5],[9,0,10,3],[9,4,9,5],[9,6,9,7],[11,0,12,3],[13,6,13,7],[11,4,11,5],[13,0,15,3],[15,6,15,7],[14,4,14,5],[14,6,14,7],[15,4,15,5],[1,0,4,7],[5,0,6,2],[5,3,6,7],[7,0,8,2],[7,3,8,7]]}
[]
[]
[]
[]
[]
["Obra:  ",null,null," Perfuração e Instalação de Poços Tubulares Profundos"]
[]
["Local:",null,null,"Comunidades dispersas situadas na zona rural dos municípios de Afogados da Ingazeira, Afrânio, Agrestina, Água Preta, Águas Belas, Alagoinha, Altinho, Angelim, Araripina, Arcoverde, Barra de Guabiraba, Barreiros, Belém de Maria, Belém do São Francisco, Betânia, Bezerros, Bodocó, Bom Conselho, Bonito, Brejão, Brejinho, Buíque, Cabrobó, Cachoeirinha, Caetés, Calçado, Calumbi, Camocim de São Félix, Canhotinho, Capoeiras, Carnaíba, Carnaubeira da Penha, Caruaru, Catende, Cedro, Correntes, Cupira, Custódia, Dormentes, Exu, Flores, Floresta, Gameleira, Garanhuns, Granito, Iati, Ibimirim, Ibirajuba, Iguaracy, Inajá, Ingazeira, Ipubi, Itacuruba, Itaíba, Itapetim, Jaqueira, Jatobá, Joaquim Nabuco, Jucati, Jupi, Jurema, Lagoa do Ouro, Lagoa dos Gatos, Lagoa Grande, Lajedo, Manari, Maraial, Mirandiba, Moreilândia, Orocó, Ouricuri, Palmares, Palmeirinha, Panelas, Paranatama, Parnamirim, Pedra, Pesqueira, Petrolândia, Petrolina, Quipapá, Quixaba, Rio Formoso, Salgueiro, Saloá, Sanharó, Santa Cruz, Santa Cruz da Baixa Verde, Santa Filomena, Santa Maria da Boa Vista, Santa Terezinha, São Benedito do Sul, São Bento do Uma, São Caitano, São João, São Joaquim do Monte, São José da Coroa Grande, São José do Belmonte, São José do Egito, Serra Talhada, Serrita, Sertânia, Solidão, Tabira, Tacaimbó, Tacaratu, Tamandaré, Terezinha, Terra Nova, Trindade, Triunfo, Tupanatinga, Tuparetama, Venturosa, Verdejante e Xexéu, no estado de Pernambuco, e Crato e Salitre, no estado do Ceará, inseridos na área de atuação da 3ª Superintendência Regional da CODEVASF."]
[]
["Total de poços a perfurar",null,null,null,"Cristalino"]
[{"$nulls":4},200]
["Total de poços a instalar",null,null,null,"Bomba c/ Energia Solar"]
[{"$nulls":4},200]
[" Data Base Utilizada para Insumos: SINAPI Julho/2020 Não Desonerado; ORSE Maio/2020; Cotações e COMPRASNET",null,null,null,"Valor Perfuração (R$)",null,2094678.33]
[{"$nulls":4},"Instalação Motobomba c/ Sist. Solar (R$)",null,5170724.28]
[{"$nulls":4},"Total das Obras",null,7265402.6100000003]
["PLANILHA ORÇAMENTÁRIA - NÃO DESONERADA"]
["Código","ITEM","COD","DESCRIÇÃO DOS SERVIÇOS","UNID.","QUANT.","PREÇO (R$)"]
[{"$nulls":6},"UNITÁRIO C/BDI","TOTAL COM BDI"]
[null,2,null,"Poços Cristalinos profundidade média 60m - PERFURAÇÃO"]
["composição","2.1","CPU-05","Locação, acompanhamento da perfuração, teste de vazão e da instalação do poço, por profissional habilitado.","un",200,220.65,44130]
["composição","2.2","CPU-06","Limpeza do terreno - Raspagem e limpeza manual do terreno com destocamento de arvore até 15cm","m²",800,4.01,3208]
["composição","2.3","CPU-07","Montagem, instalação e desinstalação de sonda.","un",200,361.12,72224]
["composição","2.4","CPU-08","Perfuração de poço com diâmetro mínimo de 8\" (solo decomposto).","m",2800,83.76,234528]
["composição","2.5","CPU-09","Perfuração de poço com diâmetro mínimo de 6\" (rocha cristalina).","m",11200,90.04,1008448]
["composição","2.6","CPU-10","FORNECIMENTO E INSTALAÇÃO DE REVESTIMENTO DO POÇO EM TUBO PVC GEOMECÂNICO STD EM DN DE 6'' COM LUVAS E ROSCA.","m",2800,96.36,269808]
["composição","2.7","CPU-11","Cimentação anelar do poço, com argamassa de cimento e areia produzida no traço 1:3.","m³",38.51,420.58,16196.54]
["composição","2.9","CPU-12","Realização de limpeza, desenvolvimento e estimulação do poço, realizado mediante a utilização de compressor de ar pelo método de fluxo e refluxo, incluindo operação e a instalação de compressor de ar, em conformidade com a NBR12244. ","un",200,204.55,40910]
["composição","2.10","CPU-13","Fornecimento e instalação de Cap fêmea de ponta de tubo de 6\", para impedir contaminação do poço, inclusive anel de vedação e borracha.","un",200,151.62,30324]
["composição","2.11","CPU-14","Realização de desinfecção do poço, incluindo material de limpeza, instalação e desinstalação de compressor, combustível e operador.","un",200,157.63,31526]
["composição","2.12","CPU-15","Realização de análise físico-química e bacteriológica da água em conformidade com a NR 518, incluindo a coleta, taxas e transporte. ","un",200,292.12,58424]
["composição","2.13","CPU-16","Realização de teste de vazão e de bombeamento do poço, incluindo operação e instalação de motobomba submersa e grupo gerador eletrico, em conformidade com a NBR 12244.","un",200,668.58,133716]
["composição","2.14","CPU-18","Cadastro de uso de água subterranea - APAC e CPRH/PE.","un",200,104.7,20940]
["composição","2.15","CPU-17","Construção de laje de proteção sanitária em concreto armado para qualquer tipo de estrutura, FCK = 15 Mpa,  virado em betoneira na obra, incluindo aplicação e adensamento, forma, escoramento e ferragens, nas dimensões-1,0m x 1,0m x 0,15m, com declividade de 2% em relação ao centro do poço para as bordas, em conformidade com a NBR 12244.","m³",30,784.77,23543.1]
["composição","2.16","CPU-29","Fornecimento e instalação de Pré-filtro preenchido com material quartzoso previamente lavado, peneirado e selecionado com granulometria variável de 2 - 4 mm em conformidade com NBR 12244. ","m³",2.0299999999999998,1728.32,3508.49]
["composição","2.17","CPU-19","Fornecimento e instalação de Tubo PVC Geo mecanico STD DN de 4\" com luvas e rosca.","m",1000,83.5,83500]
["composição","2.18","CPU-20","Fornecimento e instalação de Filtro Geo mecanico STD DN de 4\" com luvas e rosca.","m",200,89.6,17920]
["composição","2.19","CPU-21","Fornecimento e instalação de Cap PVC geomecânico STD. em DN 4\" para vedação do fundo do filtro, inclusive anel de vedação e borracha.","un",20,91.21,1824.2]
[null,4,null,"Poços Cristalinos -Montagem e Instalação"]
["composição","4.1","CPU-32","Fornecimento e assentamento de tubos e conexões em PVC tipo Edutor, azul, Diâmetro Nominal de 50mm (interligação do poço à caixa do reservatório).","m",4000,14.64,58560]
["composição","4.3","CPU-06","Limpeza do terreno - Raspagem e limpeza manual do terreno com destocamento de arvore até 15cm (área de bebedouro e do reservatório).","m²",2050,4.01,8220.5]
["composição","4.4","CPU-33","Escavação manual de vala de fundação em material de 1 e 2ª categoria, com dimensões de 0,40m (prof.) x 0,30m (larg.), incluindo regularização manual do fundo da vala (reservatório ao bebedouro).","m³",480,39.520000000000003,18969.599999999999]
["composição","4.5","CPU-34","Aterro manual de valas de fundação com 0,40m de profundidade, 0,30m largura, com avaliação visual da compactação (reservatório ao bebedouro).","m³",480,36.47,17505.599999999999]
["composição","4.6","CPU-33","Escavação manual de vala de fundação para instalação de tubulação de adutora em material de 1ª e 2ª categoria, com dimensões de 0,40m (prof.) x 0,30m (larg.), incluindo regularização manual do fundo da vala (poço ao reservatório).  ","m³",480,39.520000000000003,18969.599999999999]
["composição","4.7","CPU-34","Aterro manual de valas de fundação com 0,40m de profundidade, 0,30m de largura, com avaliação visual da compactação (poço ao reservatório).","m³",468.22,36.47,17075.98]
["composição","4.8","CPU-35","Fornecimento e assentamento de tubos e conexões em PVC, marrom, diâmetros de 32mm, soldável.","m",3000,29.35,88050]
["composição","4.9","CPU-36","Fornecimento e instalação de caixa d'água de fibra de 5m³, sobre base de concreto armado, incluído tubulação de dreno, lavagem e ladrão.","un",200,1678.45,335690]
["composição","4.10","CPU-37","Fornecimento e montagem de cerca de proteção construída com mourões de concreto armado  (H=2,5m), com 7 fios de arame farpado, incluindo chumbamento e arame de fixação. ","m",4900,43.75,214375]
["composição","4.11","CPU-39","Fornecimento, montagem e instalação de portão de ferro tubular, tela em aço galvanizado, dobradiças e fechadura para passagem de pedestre, medindo 1,80m x 1,10m, incluindo mourão de sustentação.","un",200,976.07,195214]
["composição","4.12","CPU-38","Execução de bebedouro em concreto armado, incluindo a instalação hidráulica.","un",200,1341.88,268376]
["composição","4.13","CPU-40","Execução de base de sustentação do reservatório em concreto armado, diâmetro de 2,06m e altura de 1,10m, conforme projeto.","un",200,1826.14,365228]
[null,"4.1",null,"Sistema de bombeamento com energia solar - Poços Cristalinos"]
["composição","4.1.1","CPU-42","Fornecimento de kit para bombeamento com suprimento por energia solar - SISTEMA GRID 1","unid.",200,17571.55,3514310]
["composição","4.1.2","CPU-44","Fornecimento de cabo de cobre # 3 x 4mm2 + 1 x 4mm2 conforme especificação ","m",13000,3.86,50180]

{"sheet":"Poços Sedimentares","index":3,"n_rows":58,"n_cols":8,"rows_kept":58,"cut":false,"hidden":false,"merged":[[13,0,15,3],[15,4,15,5],[15,6,15,7],[16,0,16,7],[17,0,18,0],[17,1,18,1],[17,3,18,3],[17,4,18,4],[17,5,18,5],[17,6,17,7],[14,4,14,5],[1,0,4,7],[5,0,6,2],[5,3,6,7],[7,0,8,2],[7,3,8,7],[9,0,10,5],[11,0,12,5],[17,2,18,2],[9,6,9,7],[14,6,14,7],[11,6,11,7],[13,4,13,5],[13,6,13,7],[10,6,10,7],[12,6,12,7]]}
[]
[]
[]
[]
[]
["Obra:  ",null,null," Perfuração e Instalação de Poços Tubulares Profundos"]
[]
["Local:",null,null,"Comunidades dispersas situadas na zona rural dos municípios de Afogados da Ingazeira, Afrânio, Agrestina, Água Preta, Águas Belas, Alagoinha, Altinho, Angelim, Araripina, Arcoverde, Barra de Guabiraba, Barreiros, Belém de Maria, Belém do São Francisco, Betânia, Bezerros, Bodocó, Bom Conselho, Bonito, Brejão, Brejinho, Buíque, Cabrobó, Cachoeirinha, Caetés, Calçado, Calumbi, Camocim de São Félix, Canhotinho, Capoeiras, Carnaíba, Carnaubeira da Penha, Caruaru, Catende, Cedro, Correntes, Cupira, Custódia, Dormentes, Exu, Flores, Floresta, Gameleira, Garanhuns, Granito, Iati, Ibimirim, Ibirajuba, Iguaracy, Inajá, Ingazeira, Ipubi, Itacuruba, Itaíba, Itapetim, Jaqueira, Jatobá, Joaquim Nabuco, Jucati, Jupi, Jurema, Lagoa do Ouro, Lagoa dos Gatos, Lagoa Grande, Lajedo, Manari, Maraial, Mirandiba, Moreilândia, Orocó, Ouricuri, Palmares, Palmeirinha, Panelas, Paranatama, Parnamirim, Pedra, Pesqueira, Petrolândia, Petrolina, Quipapá, Quixaba, Rio Formoso, Salgueiro, Saloá, Sanharó, Santa Cruz, Santa Cruz da Baixa Verde, Santa Filomena, Santa Maria da Boa Vista, Santa Terezinha, São Benedito do Sul, São Bento do Uma, São Caitano, São João, São Joaquim do Monte, São José da Coroa Grande, São José do Belmonte, São José do Egito, Serra Talhada, Serrita, Sertânia, Solidão, Tabira, Tacaimbó, Tacaratu, Tamandaré, Terezinha, Terra Nova, Trindade, Triunfo, Tupanatinga, Tuparetama, Venturosa, Verdejante e Xexéu, no estado de Pernambuco, e Crato e Salitre, no estado do Ceará, inseridos na área de atuação da 3ª Superintendência Regional da CODEVASF."]
[]
["Total de poços a perfurar",{"$nulls":5},"Sedimentar"]
[{"$nulls":6},42]
["Total de poços a instalar",{"$nulls":5},"Bomba c/ Sist. Solar"]
[{"$nulls":6},42]
[" Data Base Utilizada para Insumos: SINAPI Julho/2020 Não Desonerado; ORSE Maio/2020; Cotações e COMPRASNET",null,null,null,"Valor Perfuração (R$)",null,4144184.38]
[{"$nulls":4},"Instalação Sist. Solar",null,3302994.76]
[{"$nulls":4},"Total das Obras",null,7447179.1399999997]
["PLANILHA ORÇAMENTÁRIA - NÃO DESONERADA"]
["Código","ITEM","COD","DESCRIÇÃO DOS SERVIÇOS","UNID.","QUANT.","PREÇO (R$)"]
[{"$nulls":6},"UNITÁRIO C/BDI","TOTAL COM BDI"]
[null,3,null,"Poços Sedimentares profundidade média 180m"]
["composição","3.1","CPU-05","Locação, acompanhamento da perfuração, teste de vazão e da instalação do poço, por profissional habilitado.","un",42,220.65,9267.2999999999993]
["composição","3.2","CPU-06","Limpeza do terreno - Raspagem e limpeza manual do terreno com destocamento de arvore até 15cm.","m²",12600,4.01,50526]
["composição","3.3","CPU-07","Montagem, instalação e desinstalação de sonda.","un",42,361.12,15167.04]
["composição","3.4","CPU-22A","Perfuração de Poço em rocha sedimentar com diâmetro de 16\".","m",1848,215.23,397745.04]
["composição","3.5","CPU-23","Perfuração de Poço em rocha sedimentar com diâmetro de 12 1/4\".","m",7392,189.49,1400710.08]
["composição","3.6","CPU-13","Fornecimento e instalação de Cap fêmea de ponta de tubo de 6\", para impedir contaminação do poço, inclusive anel de vedação e borracha.","un",42,151.62,6368.04]
["composição","3.7","CPU-24","Fornecimento e instalação de Cap PVC geomecânico REF. em DN 6\" para vedação do fundo do filtro, inclusive anel de vedação e borracha.","un",42,159.37,6693.54]
["composição","3.8","CPU-13","Fornecimento e instalação de Cap PVC geomecânico STD. em DN 6\" para vedação do fundo do filtro, inclusive anel de vedação e borracha.","un",42,151.62,6368.04]
["composição","3.9","CPU-10","Fornecimento e instalação de Revestimento do Poço em Tubo PVC Geomecânico STD em DN de 6\" com luvas e rosca (Para poços de até no máximo 150m de profundidade).","m",6468,96.36,623256.48]
["composição","3.10","CPU-26","Fornecimento e instalação de Revestimento do Poço em Tubo PVC Geomecânico REF em DN de 6\" com luvas e rosca (Para poços de 150 m a 300 m de profundidade).","m",2772,161.43,447483.96]
["composição","3.11","CPU-11","Fornecimento e aplicação de nata de cimento para cimentação anelar e isolamento de aquíferos e proteção sanitária em conformidade com a NBR 12244.","m³",281.17,420.58,118254.48]
["composição","3.12","CPU-27","Fornecimento e instalação de Filtro em Tubo de PVC Geomecânico REF. em DN de 6\" com luva e rosca com aberturas de 0,5mm. (Para poços de 150m até no máximo 300m de profundidade).","m",2772,140.22999999999999,388717.56]
["composição","3.13","CPU-28","Fornecimento e instalação de Filtro em Tubo de PVC Geomecânico STD. em DN de 6\" com luva e rosca com aberturas de 0,5mm. (Para poços até 150m de profundidade).","m",2772,102.48,284074.56]
["composição","3.14","CPU-29","Fornecimento e instalação de Pré-filtro preenchido com material quartzoso previamente lavado, peneirado e selecionado com granulometria variável de 2 - 4 mm em conformidade com NBR 12244. ","m³",160.28,1728.32,277015.13]
["composição","3.16","CPU-12","Realização de limpeza, desenvolvimento e estimulação do poço, realizado mediante a utilização de compressor de ar pelo método de fluxo e refluxo, incluindo operação e a instalação de compressor de ar, em conformidade com a NBR12244. ","un",42,204.55,8591.1]
["composição","3.17","CPU-16","Realização de teste de vazão e de bombeamento do poço, incluindo operação e Instalação motor-bomba submersa e grupo gerador elétrico, em conformidade com a NBR 12244.","un",42,668.58,28080.36]
["composição","3.18","CPU-31","Realização de Perfilagem geofísica do poço em conformidade com a NBR 12244.","un",42,570.28,23951.759999999998]
["composição","3.19","CPU-14","Realização de desinfecção do poço, incluindo material de limpeza, instalação e desinstalação de compressor, combustível e operador.","un",42,157.63,6620.46]
["composição","3.20","CPU-15","Realização de Análise Físico-Química e bacteriológica da água em conformidade com a NR 518, incluindo a coleta, taxas e transporte. ","un",42,292.12,12269.04]
["composição","3.21","CPU-16","Obtenção junto aos órgãos competente da Outorga de funcionamento e uso de recursos hídricos - CPRH/PE.","un",42,668.58,28080.36]
["composição","3.22","CPU-17","Construção de laje de proteção sanitária em concreto armado para qualquer tipo de estrutura, inclusive forma e ferragens, nas dimensões-1,0m x 1,0m x 0,15m, com declividade de 2% em relação ao centro do poço para as bordas em conformidade com a NBR 12244.","m³",6.3,784.77,4944.05]
[null,6,null,"Poços Sedimentares - Montagem e Instalação"]
["composição","6.3","CPU-32","Fornecimento e assentamento de tubos e conexões em PVC tipo Edutor, azul, Diâmetro Nominal de 50mm (interligação do poço a caixa do reservatório).","m",7392,14.64,108218.88]
["composição","6.5","CPU-41","Locação de rede de adutora para interligação do poço ao reservatório e deste ao bebedouro.","m",7392,87.57,647317.43999999994]
["composição","6.6","CPU-35","Fornecimento e assentamento de tubos e conexões em PVC, marrom, diâmetros de 32mm, soldável.","m",6300,29.35,184905]
["composição","6.7","CPU-33","Escavação manual de vala de fundação para instalação de tubulação de adutora em material de 1ª e 2ª categoria, com dimensões de 0,40m (prof.) x 0,30m (larg.), incluindo regularização manual do fundo da vala (poço ao reservatório).  ","m³",887.04,39.520000000000003,35055.82]
["composição","6.8","CPU-34","Aterro manual de valas de fundação com 0,40m de profundidade, 0,30m de largura, com avaliação visual da compactação (poço ao reservatório).","m³",874.67,36.47,31899.21]
["composição","6.9","CPU-36","Fornecimento e instalação de caixa d'água de fibra de 5m³, sobre base de concreto armado, incluído tubulação de dreno, lavagem e ladrão.","un",42,1678.45,70494.899999999994]
["composição","6.10","CPU-37","Fornecimento e montagem de cerca de proteção construída com mourões de concreto armado  (H=2,5m), com 7 fios de arame farpado, incluindo chumbamento e arame de fixação. ","m",1533,43.75,67068.75]
["composição","6.11","CPU-39","Fornecimento, montagem e instalação de portão de ferro tubular, tela em aço galvanizado, dobradiças e fechadura para passagem de pedestre, medindo 1,80m x 1,10m, incluindo mourão de sustentação.","un",42,976.07,40994.94]
["composição","6.12","CPU-33","Escavação manual de vala de fundação em material de 1 e 2ª categoria, com dimensões de 0,40 m (prof.) x 0,30 m (larg.), incluindo regularização manual do fundo da vala (reservatório ao bebedouro).","m³",756,39.520000000000003,29877.119999999999]
["composição","6.13","CPU-34","Aterro manual de valas de fundação com 0,40m de profundidade, 0,30m de largura, com avaliação visual da compactação (reservatório ao bebedouro).","m³",749.24,36.47,27324.78]
["composição","6.14","CPU-38","Execução de bebedouro em concreto armado, incluindo a instalação hidráulica.","un",42,1341.88,56358.96]
["composição","6.15","CPU-40","Execução de base de sustentação do reservatório em concreto armado, diâmetro de 2,06m e altura de 1,10m, conforme projeto.","un",42,1826.14,76697.88]
[null,"6.1",null,"Poços Sedimentares - Sistema de bombeamento com energia solar"]
["composição","6.1.1","CPU-43","Fornecimento de kit para bombeamento com suprimento por energia solar - SISTEMA GRID 2","unid.",42,44762.44,1880022.48]
["composição","6.1.2","CPU-45","Fornecimento de cabo de cobre # 3 x 6mm2 + 1 x 6mm2 conforme especificação","m",2100,5.26,11046]
["composição","6.1.3","CPU-46","Fornecimento de cabo de cobre # 3 x 10mm2 + 1 x 10mm2 conforme especificação","m",4620,7.73,35712.6]

{"sheet":"COMPOSIÇÕES","index":4,"n_rows":977,"n_cols":9,"rows_kept":977,"cut":false,"hidden":false,"merged":[[542,1,543,1],[576,1,577,1],[588,5,588,7],[497,5,497,7],[489,6,489,7],[471,7,472,7],[471,8,472,8],[471,1,472,1],[508,1,509,1],[520,5,520,7],[523,6,523,7],[525,1,526,1],[525,2,526,2],[525,3,526,3],[525,4,526,4],[525,5,526,5],[525,6,526,6],[525,7,526,7],[525,8,526,8],[491,1,492,1],[491,2,492,2],[491,3,492,3],[491,4,492,4],[491,5,492,5],[451,1,452,1],[457,5,457,7],[477,5,477,7],[466,5,466,7],[413,4,413,8],[471,2,472,2],[471,3,472,3],[471,4,472,4],[471,5,472,5],[471,6,472,6],[469,6,469,7],[432,4,433,4],[432,5,433,5],[432,6,433,6],[451,2,452,2],[451,3,452,3],[451,4,452,4],[451,5,452,5],[451,6,452,6],[451,7,452,7],[451,8,452,8],[396,1,397,1],[402,5,402,7],[409,5,409,7],[412,6,412,7],[414,1,415,1],[432,7,433,7],[432,8,433,8],[432,1,433,1],[449,6,449,7],[446,5,446,7],[396,8,397,8],[438,5,438,7],[414,2,415,2],[414,3,415,3],[414,4,415,4],[414,5,415,5],[414,6,415,6],[414,7,415,7],[414,8,415,8],[420,5,420,7],[427,5,427,7],[430,6,430,7],[432,2,433,2],[432,3,433,3],[378,1,379,1],[378,2,379,2],[378,3,379,3],[378,4,379,4],[378,5,379,5],[373,5,373,7],[376,6,376,7],[378,6,379,6],[378,7,379,7],[325,5,325,7],[332,5,332,7],[335,6,335,7],[337,1,338,1],[360,1,361,1],[366,5,366,7],[319,8,320,8],[360,7,361,7],[360,8,361,8],[337,2,338,2],[337,3,338,3],[337,4,338,4],[337,5,338,5],[337,6,338,6],[337,7,338,7],[337,8,338,8],[346,5,346,7],[355,5,355,7],[358,6,358,7],[360,2,361,2],[360,3,361,3],[360,4,361,4],[360,5,361,5],[360,6,361,6],[307,5,307,7],[314,5,314,7],[317,6,317,7],[319,1,320,1],[319,2,320,2],[319,3,320,3],[319,4,320,4],[319,5,320,5],[319,6,320,6],[319,7,320,7],[287,5,287,7],[299,6,299,7],[281,8,282,8],[296,5,296,7],[301,7,302,7],[301,8,302,8],[301,1,302,1],[301,2,302,2],[301,3,302,3],[301,4,302,4],[301,5,302,5],[301,6,302,6],[245,8,246,8],[276,5,276,7],[279,6,279,7],[281,1,282,1],[281,2,282,2],[281,3,282,3],[281,4,282,4],[281,5,282,5],[281,6,282,6],[281,7,282,7],[263,1,264,1],[263,2,264,2],[263,3,264,3],[263,4,264,4],[263,5,264,5],[263,6,264,6],[263,7,264,7],[263,8,264,8],[269,5,269,7],[233,5,233,7],[240,5,240,7],[245,1,246,1],[245,2,246,2],[245,3,246,3],[245,4,246,4],[245,5,246,5],[251,5,251,7],[261,6,261,7],[258,5,258,7],[243,6,243,7],[245,6,246,6],[245,7,246,7],[215,5,215,7],[209,8,210,8],[222,5,222,7],[225,6,225,7],[227,1,228,1],[227,2,228,2],[227,3,228,3],[227,4,228,4],[227,5,228,5],[227,6,228,6],[227,7,228,7],[227,8,228,8],[198,5,198,7],[204,5,204,7],[207,6,207,7],[209,1,210,1],[209,2,210,2],[209,3,210,3],[209,4,210,4],[209,5,210,5],[209,6,210,6],[209,7,210,7],[176,8,177,8],[182,5,182,7],[188,5,188,7],[193,1,194,1],[193,2,194,2],[193,3,194,3],[193,4,194,4],[193,5,194,5],[193,6,194,6],[193,7,194,7],[191,6,191,7],[193,8,194,8],[162,5,162,7],[174,6,174,7],[176,1,177,1],[176,2,177,2],[176,3,177,3],[176,4,177,4],[176,5,177,5],[176,6,177,6],[176,7,177,7],[171,5,171,7],[118,8,119,8],[142,5,142,7],[131,5,131,7],[134,6,134,7],[154,6,154,7],[156,1,157,1],[156,2,157,2],[156,3,157,3],[156,4,157,4],[156,5,157,5],[156,7,157,7],[156,8,157,8],[156,6,157,6],[123,5,123,7],[136,1,137,1],[136,2,137,2],[136,3,137,3],[136,4,137,4],[136,5,137,5],[136,6,137,6],[136,7,137,7],[136,8,137,8],[151,5,151,7],[116,6,116,7],[118,1,119,1],[118,2,119,2],[118,3,119,3],[118,4,119,4],[118,5,119,5],[118,6,119,6],[118,7,119,7],[98,5,98,7],[101,6,101,7],[103,7,104,7],[103,8,104,8],[113,5,113,7],[103,1,104,1],[103,2,104,2],[103,3,104,3],[103,4,104,4],[103,5,104,5],[103,6,104,6],[107,5,107,7],[68,6,69,6],[68,7,69,7],[68,8,69,8],[46,7,47,7],[46,8,47,8],[79,5,79,7],[46,6,47,6],[85,1,86,1],[85,2,86,2],[85,3,86,3],[85,4,86,4],[85,5,86,5],[85,7,86,7],[85,8,86,8],[85,6,86,6],[68,1,69,1],[68,2,69,2],[68,3,69,3],[68,4,69,4],[68,5,69,5],[46,1,47,1],[46,2,47,2],[46,3,47,3],[46,4,47,4],[46,5,47,5],[13,6,14,6],[30,6,31,6],[30,7,31,7],[30,8,31,8],[34,5,34,7],[41,5,41,7],[44,6,44,7],[13,7,14,7],[13,8,14,8],[18,5,18,7],[25,5,25,7],[28,6,28,7],[72,5,72,7],[83,6,83,7],[81,6,81,7],[82,6,82,7],[90,5,90,7],[0,1,2,8],[3,2,3,8],[5,1,7,4],[6,5,7,6],[9,0,9,8],[56,5,56,7],[63,5,63,7],[66,6,66,7],[30,1,31,1],[30,2,31,2],[30,3,31,3],[30,4,31,4],[30,5,31,5],[11,0,11,8],[13,1,14,1],[13,2,14,2],[13,3,14,3],[13,4,14,4],[13,5,14,5],[378,8,379,8],[384,5,384,7],[391,5,391,7],[394,6,394,7],[396,2,397,2],[396,3,397,3],[396,4,397,4],[396,5,397,5],[396,6,397,6],[396,7,397,7],[542,2,543,2],[542,3,543,3],[542,4,543,4],[542,5,543,5],[542,6,543,6],[542,7,543,7],[542,8,543,8],[503,5,503,7],[506,6,506,7],[508,2,509,2],[508,3,509,3],[508,4,509,4],[508,5,509,5],[508,6,509,6],[508,7,509,7],[508,8,509,8],[514,5,514,7],[486,5,486,7],[491,6,492,6],[491,7,492,7],[491,8,492,8],[576,8,577,8],[582,5,582,7],[591,6,591,7],[571,5,571,7],[574,6,574,7],[548,5,548,7],[554,5,554,7],[557,6,557,7],[531,5,531,7],[537,5,537,7],[540,6,540,7],[661,5,661,7],[664,6,664,7],[643,5,643,7],[646,6,646,7],[635,5,635,7],[609,6,609,7],[624,5,624,7],[606,5,606,7],[576,2,577,2],[576,3,577,3],[576,4,577,4],[576,5,577,5],[576,6,577,6],[576,7,577,7],[627,6,627,7],[654,5,654,7],[776,5,776,7],[779,6,779,7],[749,6,749,7],[746,5,746,7],[723,5,723,7],[726,6,726,7],[699,5,699,7],[702,6,702,7],[679,5,679,7],[682,6,682,7],[899,5,899,7],[877,5,877,7],[880,6,880,7],[855,5,855,7],[858,6,858,7],[837,5,837,7],[840,6,840,7],[810,6,810,7],[807,5,807,7],[973,5,973,7],[976,6,976,7],[936,5,936,7],[939,6,939,7],[907,5,907,7],[908,5,908,7],[909,6,909,7],[915,5,915,7],[916,6,916,7],[922,5,922,7],[923,6,923,7],[559,1,560,1],[559,2,560,2],[559,3,560,3],[559,4,560,4],[559,5,560,5],[559,6,560,6],[559,7,560,7],[559,8,560,8],[565,5,565,7],[593,1,594,1],[593,2,594,2],[593,3,594,3],[593,4,594,4],[593,5,594,5],[593,6,594,6],[593,7,594,7],[593,8,594,8],[599,5,599,7],[611,1,612,1],[611,2,612,2],[611,3,612,3],[611,4,612,4],[611,5,612,5],[611,6,612,6],[611,7,612,7],[611,8,612,8],[617,5,617,7],[629,1,630,1],[629,2,630,2],[629,3,630,3],[629,4,630,4],[629,5,630,5],[629,6,630,6],[629,7,630,7],[629,8,630,8],[648,1,649,1],[648,2,649,2],[648,3,649,3],[648,4,649,4],[648,5,649,5],[648,6,649,6],[648,7,649,7],[648,8,649,8],[666,1,667,1],[666,2,667,2],[666,3,667,3],[666,4,667,4],[666,5,667,5],[666,6,667,6],[666,7,667,7],[666,8,667,8],[672,5,672,7],[684,1,685,1],[684,2,685,2],[684,3,685,3],[684,4,685,4],[684,5,685,5],[684,6,685,6],[684,7,685,7],[684,8,685,8],[690,5,690,7],[704,1,705,1],[704,2,705,2],[704,3,705,3],[704,4,705,4],[704,5,705,5],[704,6,705,6],[704,7,705,7],[704,8,705,8],[716,5,716,7],[728,1,729,1],[728,2,729,2],[728,3,729,3],[728,4,729,4],[728,5,729,5],[728,6,729,6],[728,7,729,7],[728,8,729,8],[739,5,739,7],[751,1,752,1],[751,2,752,2],[751,3,752,3],[751,4,752,4],[751,5,752,5],[751,6,752,6],[751,7,752,7],[751,8,752,8],[763,5,763,7],[781,1,782,1],[781,2,782,2],[781,3,782,3],[781,4,782,4],[781,5,782,5],[781,6,782,6],[781,7,782,7],[781,8,782,8],[799,5,799,7],[812,1,813,1],[812,2,813,2],[812,3,813,3],[812,4,813,4],[812,5,813,5],[812,6,813,6],[812,7,813,7],[812,8,813,8],[824,5,824,7],[842,1,843,1],[842,2,843,2],[842,3,843,3],[842,4,843,4],[842,5,843,5],[842,6,843,6],[842,7,843,7],[842,8,843,8],[847,5,847,7],[860,1,861,1],[860,2,861,2],[860,3,861,3],[860,4,861,4],[860,5,861,5],[860,6,861,6],[860,7,861,7],[860,8,861,8],[871,5,871,7],[882,1,883,1],[882,2,883,2],[882,3,883,3],[882,4,883,4],[882,5,883,5],[882,6,883,6],[882,7,883,7],[882,8,883,8],[893,5,893,7],[902,6,902,7],[904,1,905,1],[904,2,905,2],[904,3,905,3],[904,4,905,4],[904,5,905,5],[904,6,905,6],[904,7,905,7],[904,8,905,8],[911,1,912,1],[911,2,912,2],[911,3,912,3],[911,4,912,4],[911,5,912,5],[911,6,912,6],[911,7,912,7],[911,8,912,8],[914,5,914,7],[918,1,919,1],[918,2,919,2],[918,3,919,3],[918,4,919,4],[918,5,919,5],[918,6,919,6],[918,7,919,7],[918,8,919,8],[921,5,921,7],[941,1,942,1],[941,2,942,2],[941,3,942,3],[941,4,942,4],[941,5,942,5],[941,6,942,6],[941,7,942,7],[941,8,942,8],[925,1,926,1],[925,2,926,2],[925,3,926,3],[925,4,926,4],[925,5,926,5],[925,6,926,6],[925,7,926,7],[925,8,926,8],[930,5,930,7]]}
[]
[]
[]
[null,"OBJETO:","PERFURAÇÃO E INSTALAÇÃO DE POÇOS TUBULARES EM ÁREAS DE ROCHAS CRISTALINAS, PERFURAÇÃO E INSTALAÇÃO DE 22 (VINTE E DOIS) POÇOS TUBULARES EM ÁREAS DE ROCHAS SEDIMENTARES, INSTALAÇÃO DE 550 (QUINHENTOS E CINQUENTA) POÇOS TUBULARES EM ÁREAS DE ROCHAS CRISTALINAS E PERFURAÇÃO DE 120 (CENTO E VINTE) POÇOS TUBULARES EM ÁREAS DE ROCHAS CRISTALINAS, TODOS LOCALIZADOS EM MUNICÍPIOS INSERIDOS NA ÁREA DE ATUAÇÃO DA 3ª SUPERINTENDÊNCIA REGIONAL DA CODEVASF, ATRAVÉS DE SISTEMA DE REGISTRO DE PREÇOS - SRP."]
[]
[null,"Data Base Utilizada para Insumos: SINAPI Julho/2020 Não Desonerado; ORSE Maio/2020; Cotações e COMPRASNET",null,null,null,"BDI Serv.:",0.2336,"BDI Mat.:",0.1143]
[{"$nulls":5},"Encargos Sociais:",null,"Horista","Mensalista"]
[{"$nulls":7},1.1503000000000001,0.7107]
[]
["PLANILHA ORÇAMENTARIA NÁO DESONERADA - Julho/2019"]
[]
["DETALHAMENTO DAS COMPOSIÇÕES DE CUSTO UNITÁRIO"]
[]
[null,"CPU-01","FONTE","Codevasf","MOBILIZAÇÃO DE EQUIPAMENTOS, MATERIAIS E PESSOAL","UNID","COEF.","PRECO UNITÁRIO (R$)","TOTAL (R$)"]
[]
[{"$nulls":4},"FORNECIMENTOS"]
[]
[]
[{"$nulls":5},"Sub total:",null,null,0]
[{"$nulls":6},"BDI  Materiais",0.1143,0]
[{"$nulls":7},"Total Fornecimentos:",0]
[{"$nulls":4},"SERVIÇOS"]
[null,"ORSE","Cotação de Mercdo","10434/ORSE","Caminhão carroceria de madeira 9 toneladas","h",3.5,90.41,316.44]
[null,"CODEVASF","tab. Codevasf","VEICULO/ TABELA CODEVASF 2019 (B9)","PICK-UP SAVEIRO ROBUST 1.6 TOTAL FLEX 8V","h",3.5,16.05,56.18]
[null,"COMP. SINAPI","SINAPI","88316","SERVENTE COM ENCARGOS COMPLEMENTARES","h",7,"16,25",113.75]
[{"$nulls":5},"Sub total:",null,null,486.37]
[{"$nulls":6},"BDI  Serviços",0.2336,113.62]
[{"$nulls":7},"Total Serviços:",599.99]
[{"$nulls":5},"CPU-01","PREÇO UNITÁRIO TOTAL:",null,599.99]
[]
[null,"CPU-02","FONTE","Codevasf","DESMOBILIZAÇÃO DE EQUIPAMENTOS, MATERIAIS E PESSOAL","UNID","COEF.","PRECO UNITÁRIO (R$)","TOTAL (R$)"]
[]
[{"$nulls":4},"FORNECIMENTOS"]
[]
[{"$nulls":5},"Sub total:",null,null,0]
[{"$nulls":6},"BDI  Materiais",0.1143,0]
[{"$nulls":7},"Total Fornecimentos:",0]
[{"$nulls":4},"SERVIÇOS"]
[null,"ORSE","Cotação de Mercdo","10434/ORSE","Caminhão carroceria de madeira 9 toneladas","h",6.5,90.41,587.66999999999996]
[null,"CODEVASF","tab. Codevasf","VEICULO/ TABELA CODEVASF 2019 (B9)","PICK-UP SAVEIRO ROBUST 1.6 TOTAL FLEX 8V","h",6.5,16.05,104.33]
[null,"COMP. SINAPI","SINAPI","88316","SERVENTE COM ENCARGOS COMPLEMENTARES","unid",12,"16,25",195]
[{"$nulls":5},"Sub total:",null,null,887]
[{"$nulls":6},"BDI  Serviços",0.2336,207.2]
[{"$nulls":7},"Total Serviços:",1094.2]
[{"$nulls":5},"CPU-02","PREÇO UNITÁRIO TOTAL:",null,1094.2]
[]
[null,"CPU-03","FONTE","Codevasf","FORNECIMENTO, MONTAGEM E CONSERVAÇÃO DE PLACA DE IDENTIFICAÇÃO DE OBRA PADRÃO  (3M X 2M).","M²","COEF.","PRECO UNITÁRIO (R$)","TOTAL (R$)"]
[]
[{"$nulls":4},"FORNECIMENTOS"]
[null,"INS. SINAPI","SINAPI",5075,"Prego 18x30.","kg",0.11,"11,70",1.29]
[null,"INS. SINAPI","SINAPI",4491,"Peca de madeira nativa / regional 7,5 x 7,5cm (3x3) nao aparelhada (p/forma)","m",4,"6,16",24.64]
[null,"INS. SINAPI","SINAPI",4417,"Peca de madeira de lei *2,5 x 7,5* cm (1\" x 3\"), não aparelhada, (p/telhado)","m",1,"2,52",2.52]
[null,"INS. SINAPI","SINAPI",4813,"Placa de obra (para construcao civil) em chapa galvanizada *nº 22*, de *2,0 x 1,125* m","m²",1,"300,00",300]
[null,"INS. SINAPI","SINAPI",370,"Areia Média","m³",4.8999999999999998E-3,"87,00",0.43]
[null,"INS. SINAPI","SINAPI",1379,"Cimento","kg",1.5,"0,44",0.66]
[null,"INS. SINAPI","SINAPI",4718,"Pedra Britada nº 2","m³",9.7999999999999997E-3,"59,13",0.57999999999999996]
[{"$nulls":5},"Sub total:",null,null,330.12]
[{"$nulls":6},"BDI  Materiais",0.1143,37.729999999999997]
[{"$nulls":7},"Total Fornecimentos:",367.85]
[{"$nulls":4},"SERVIÇOS"]
[null,"COMP. SINAPI","SINAPI","87445","Betoneira 320 l, diesel, potencia de 5,5 hp, sem carregador mecanico (locacao)","h",6.4999999999999997E-3,"3,15",0.02]
[null,"COMP. SINAPI","SINAPI","88262","CARPINTEIRO DE FORMAS COM ENCARGOS COMPLEMENTARES","h",1,"20,06",20.059999999999999]
[null,"COMP. SINAPI","SINAPI","88316","SERVENTE COM ENCARGOS COMPLEMENTARES","h",2.06,"16,25",33.479999999999997]
[{"$nulls":5},"Sub total:",null,null,53.56]
[{"$nulls":6},"BDI  Serviços",0.2336,12.51]
[{"$nulls":7},"Total Serviços:",66.069999999999993]
[{"$nulls":5},"CPU-03","PREÇO UNITÁRIO TOTAL:",null,433.92]
[]
[null,"CPU-04","FONTE","Codevasf","ADMINISTRAÇÃO LOCAL DA OBRA.","UND","COEF.","PRECO UNITÁRIO (R$)","TOTAL (R$)"]
[]
[{"$nulls":4},"FORNECIMENTOS"]
[]
[{"$nulls":5},"Sub total:",null,null,0]
[{"$nulls":6},"BDI  Materiais",0.1143,0]
[{"$nulls":7},"Total Fornecimentos:",0]
[{"$nulls":4},"SERVIÇOS"]
[null,"INS. SINAPI","SINAPI",43486,"EPI","h",35,"0,57",19.95]
[null,"CODEVASF","tab. Codevasf","VEICULO/ TABELA CODEVASF 2019 (B9)","PICK-UP SAVEIRO ROBUST 1.6 TOTAL FLEX 8V","h",150,16.05,2407.5]
[null,"INS. SINAPI","SINAPI",2707,"Geólogo","h",35,"84,24",2948.4]
[{"$nulls":5},"Sub total:",null,null,5375.85]
[{"$nulls":6},"BDI  Serviços",0.2336,1255.8]
[{"$nulls":6},"Total Serviços - Custo mensal:",null,6631.65]
[{"$nulls":6},"Total Serviços - Custo para 12 meses:",null,79579.8]
[{"$nulls":5},"CPU-04","PREÇO UNITÁRIO TOTAL:",null,79579.8]
[]
[null,"CPU-05","FONTE","Codevasf","LOCAÇÃO, ACOMPANHAMENTO DA PERFURAÇÃO, TESTE DE VAZÃO E DA INSTALAÇÃO DO POÇO, POR PROFISSIONAL HABILITADO.","UND","COEF.","PRECO UNITÁRIO (R$)","TOTAL (R$)"]
[]
[{"$nulls":4},"FORNECIMENTOS"]
[]
[]
[{"$nulls":5},"Sub total:",null,null,0]
[{"$nulls":6},"BDI  Materiais",0.1143,0]
[{"$nulls":7},"Total Fornecimentos:",0]
[{"$nulls":4},"SERVIÇOS"]
[null,"INS. SINAPI","SINAPI",4778,"Locação de equipamento para perfuração (Método Geofísico).","h",1.5,"2,70",4.05]
[null,"COMP. SINAPI","SINAPI","88316","SERVENTE COM ENCARGOS COMPLEMENTARES","h",1.5,"16,25",24.38]
[null,"INS. SINAPI","SINAPI",2707,"Geólogo","h",1.5,"84,24",126.36]
[null,"CODEVASF","tab. Codevasf","VEICULO/ TABELA CODEVASF 2019 (B9)","PICK-UP SAVEIRO ROBUST 1.6 TOTAL FLEX 8V","h",1.5,16.05,24.08]
[{"$nulls":5},"Sub total:",null,null,178.87]
[{"$nulls":6},"BDI  Serviços",0.2336,41.78]
[{"$nulls":7},"Total Serviços:",220.65]
[{"$nulls":5},"CPU-05","PREÇO UNITÁRIO TOTAL:",null,220.65]
[]
[null,"CPU-06","FONTE","Codevasf","LIMPEZA DO TERRENO - RASPAGEM E LIMPEZA MANUAL DO TERRENO COM DESTOCAMENTO DE ARVORE ATÉ 15CM.","M²","COEF.","PRECO UNITÁRIO (R$)","TOTAL (R$)"]
[]
[{"$nulls":4},"FORNECIMENTOS"]
[]
[{"$nulls":5},"Sub total:",null,null,0]
[{"$nulls":6},"BDI  Materiais",0.1143,0]
[{"$nulls":7},"Total Fornecimentos:",0]
[{"$nulls":4},"SERVIÇOS"]
[null,"COMP. SINAPI","SINAPI","88316","SERVENTE COM ENCARGOS COMPLEMENTARES","h",0.2,"16,25",3.25]
[]
[{"$nulls":5},"Sub total:",null,null,3.25]
[{"$nulls":6},"BDI  Serviços",0.2336,0.76]
[{"$nulls":7},"Total Serviços:",4.01]
[{"$nulls":5},"CPU-06","PREÇO UNITÁRIO TOTAL:",null,4.01]
[]
[null,"CPU-07","FONTE","Codevasf","MONTAGEM, INSTALAÇÃO E DESINSTALAÇÃO DE SONDA.","UNID","COEF.","PRECO UNITÁRIO (R$)","TOTAL (R$)"]
[]
[{"$nulls":4},"FORNECIMENTOS"]
[null,"INS. SINAPI","SINAPI",4227,"Lubrificante","l",0.5,"17,50",8.75]
[null,"INS. SINAPI","SINAPI",4221,"Óleo diesel","l",15,"3,28",49.2]
[{"$nulls":5},"Sub total:",null,null,57.95]
[{"$nulls":6},"BDI  Materiais",0.1143,6.62]
[{"$nulls":7},"Total Fornecimentos:",64.569999999999993]
[{"$nulls":4},"SERVIÇOS"]
[null,"COMP. SINAPI","SINAPI","88316","SERVENTE COM ENCARGOS COMPLEMENTARES","h",0.2,"16,25",3.25]
[null,"COMP. SINAPI","SINAPI","90776","Encarregado","h",1,"38,55",38.549999999999997]
[null,"COMP. SINAPI","SINAPI","88285","Motorista","h",2,"35,28",70.56]
[null,"COMP. SINAPI","SINAPI","5953","Perfuratriz","h",3.5,"36,58",128.03]
[{"$nulls":5},"Sub total:",null,null,240.39]
[{"$nulls":6},"BDI  Serviços",0.2336,56.16]
[{"$nulls":7},"Total Serviços:",296.55]
[{"$nulls":5},"CPU-07","PREÇO UNITÁRIO TOTAL:",null,361.12]
[]
[null,"CPU-08","FONTE","Codevasf","PERFURAÇÃO DE POÇO COM DIÂMETRO MÍNIMO DE 8'' - SOLO DECOMPOSTO.","M","COEF.","PRECO UNITÁRIO (R$)","TOTAL (R$)"]
[]
[{"$nulls":4},"FORNECIMENTOS"]
[null,"INS. SINAPI","SINAPI",4227,"Lubrificante","l",0.1,"17,50",1.75]
[null,"INS. SINAPI","SINAPI",4229,"Graxa grafitada","kg",0.1,"25,69",2.57]
[null,"INS. SINAPI","SINAPI",4221,"Óleo diesel","l",0.5,"3,28",1.64]
[{"$nulls":5},"Sub total:",null,null,5.96]
[{"$nulls":6},"BDI  Materiais",0.1143,0.68]
[{"$nulls":7},"Total Fornecimentos:",6.64]
[{"$nulls":4},"SERVIÇOS"]
[null,"COMP. SINAPI","SINAPI","88316","SERVENTE COM ENCARGOS COMPLEMENTARES","h",0.8,"16,25",13]
[null,"COMP. SINAPI","SINAPI","90776","Encarregado","h",0.65,"38,55",25.06]
[null,"COMP. SINAPI","SINAPI","88297","Operador de perfuratriz","h",0.35,"30,59",10.71]
[null,"INS. SINAPI","SINAPI",4778,"Compressor","h",0.35,"2,70",0.95]
[null,"COMP. SINAPI","SINAPI","5953","Perfuratriz","h",0.35,"36,58",12.8]
[{"$nulls":5},"Sub total:",null,null,62.52]
[{"$nulls":6},"BDI  Serviços",0.2336,14.6]
[{"$nulls":7},"Total Serviços:",77.12]
[{"$nulls":5},"CPU-08","PREÇO UNITÁRIO TOTAL:",null,83.76]
[]
[null,"CPU-09","FONTE","Codevasf","PERFURAÇÃO DE POÇO COM DIÂMETRO MÍNIMO DE 6'' - ROCHA CRISTALINA.","M","COEF.","PRECO UNITÁRIO (R$)","TOTAL (R$)"]
[]
[{"$nulls":4},"FORNECIMENTOS"]
[null,"INS. SINAPI","SINAPI",4227,"Lubrificante","l",0.12,"17,50",2.1]
[null,"INS. SINAPI","SINAPI",4229,"Graxa grafitada","kg",0.12,"25,69",3.08]
[null,"INS. SINAPI","SINAPI",4221,"Óleo diesel","l",4,"3,28",13.12]
[{"$nulls":5},"Sub total:",null,null,18.3]
[{"$nulls":6},"BDI  Materiais",0.1143,2.09]
[{"$nulls":7},"Total Fornecimentos:",20.39]
[{"$nulls":4},"SERVIÇOS"]
[null,"COMP. SINAPI","SINAPI","88316","SERVENTE COM ENCARGOS COMPLEMENTARES","h",0.5,"16,25",8.1300000000000008]
[null,"COMP. SINAPI","SINAPI","90776","Encarregado","h",0.5,"38,55",19.28]
[null,"COMP. SINAPI","SINAPI","88297","Operador de perfuratriz","h",0.5,"30,59",15.3]
[null,"INS. SINAPI","SINAPI",4778,"Compressor","h",0.35,"2,70",0.95]
[null,"COMP. SINAPI","SINAPI","5953","Perfuratriz","h",0.35,"36,58",12.8]
[{"$nulls":5},"Sub total:",null,null,56.46]
[{"$nulls":6},"BDI  Serviços",0.2336,13.19]
[{"$nulls":7},"Total Serviços:",69.650000000000006]
[{"$nulls":5},"CPU-09","PREÇO UNITÁRIO TOTAL:",null,90.04]
[]
[null,"CPU-10","FONTE","Codevasf"," FORNECIMENTO E INSTALAÇÃO DE REVESTIMENTO DO POÇO EM TUBO PVC GEOMECÂNICO STD EM DN DE 6'' COM LUVAS E ROSCA.","M","COEF.","PRECO UNITÁRIO (R$)","TOTAL (R$)"]
[]
[{"$nulls":4},"FORNECIMENTOS"]
[null,"COMPRASNET","COMPRASNET","287714/CATMAT","Tubo de 6\" de PVC geomecânico","m",1,61.63,61.63]
[null,"INS. SINAPI","SINAPI",4229,"Graxa grafitada","kg",0.2,"25,69",5.14]
[null,"INS. SINAPI","SINAPI",4221,"Óleo diesel","l",0.01,"3,28",0.03]
[{"$nulls":5},"Sub total:",null,null,66.8]
[{"$nulls":6},"BDI  Materiais",0.1143,7.64]
[{"$nulls":7},"Total Fornecimentos:",74.44]
[{"$nulls":4},"SERVIÇOS"]
[null,"COMP. SINAPI","SINAPI","88316","SERVENTE COM ENCARGOS COMPLEMENTARES","h",0.5,"16,25",8.1300000000000008]
[null,"COMP. SINAPI","SINAPI","90776","Encarregado","h",0.25,"38,55",9.64]
[{"$nulls":5},"Sub total:",null,null,17.77]
[{"$nulls":6},"BDI  Serviços",0.2336,4.1500000000000004]
[{"$nulls":7},"Total Serviços:",21.92]
[{"$nulls":5},"CPU-10","PREÇO UNITÁRIO TOTAL:",null,96.36]
[]
[null,"CPU-11","FONTE","Codevasf","ARGAMASSA DE CIMENTO E AREIA TRAÇO 1:3, PREPARO MECÂNICO.","M³","COEF.","PRECO UNITÁRIO (R$)","TOTAL (R$)"]
[]
[{"$nulls":4},"FORNECIMENTOS"]
[null,"INS. SINAPI","SINAPI",1379,"Cimento Portland CP II - 32.","kg",473,"0,44",208.12]
[null,"INS. SINAPI","SINAPI",367,"Areia Lavável.","m³",1.3,"79,90",103.87]
[{"$nulls":5},"Sub total:",null,null,311.99]
[{"$nulls":6},"BDI  Materiais",0.1143,35.659999999999997]
[{"$nulls":7},"Total Fornecimentos:",347.65]
[{"$nulls":4},"SERVIÇOS"]
[null,"COMP. SINAPI","SINAPI","88316","SERVENTE COM ENCARGOS COMPLEMENTARES","h",3.5,"16,25",56.88]
[null,"COMP. SINAPI","SINAPI","87445","Betoneira com capacidade de 400l. Motor Diesel de 7 HP.","h",0.71,"3,15",2.2400000000000002]
[{"$nulls":5},"Sub total:",null,null,59.12]
[{"$nulls":6},"BDI  Serviços",0.2336,13.81]
[{"$nulls":7},"Total Serviços:",72.930000000000007]
[{"$nulls":5},"CPU-11","PREÇO UNITÁRIO TOTAL:",null,420.58]
[]
[null,"CPU-12","FONTE","Codevasf","REALIZAÇÃO DE LIMPEZA DO POÇO, REALIZADO MEDIANTE A UTILIZAÇÃO DE COMPRESSOR DE AR PELO MÉTODO DE FLUXO E REFLUXO, INCLUINDO OPERAÇÃO E A INSTALAÇÃO DE COMPRESSOR DE AR, EM CONFORMIDADE COM A NBR 12244.","UNID","COEF.","PRECO UNITÁRIO (R$)","TOTAL (R$)"]
[]
[{"$nulls":4},"FORNECIMENTOS"]
[null,"INS. SINAPI","SINAPI",4221,"Óleo diesel","l",3.5,"3,28",11.48]
[null,"INS. SINAPI","SINAPI",4227,"Óleo Lubrificante.","l",0.1,"17,50",1.75]
[]
[{"$nulls":5},"Sub total:",null,null,13.23]
[{"$nulls":6},"BDI  Materiais",0.1143,1.51]
[{"$nulls":7},"Total Fornecimentos:",14.74]
[{"$nulls":4},"SERVIÇOS"]
[null,"COMP. SINAPI","SINAPI","88316","SERVENTE COM ENCARGOS COMPLEMENTARES","h",2,"16,25",32.5]
[null,"COMP. SINAPI","SINAPI","5953","Compressor","h",2.5,"36,58",91.45]
[null,"COMP. SINAPI","SINAPI","88292","Operador de Compressor.","h",1,"29,92",29.92]
[{"$nulls":5},"Sub total:",null,null,153.87]
[{"$nulls":6},"BDI  Serviços",0.2336,35.94]
[{"$nulls":7},"Total Serviços:",189.81]
[{"$nulls":5},"CPU-12","PREÇO UNITÁRIO TOTAL:",null,204.55]
[]
[null,"CPU-12","FONTE","Codevasf","REALIZAÇÃO DE DESENVOLVIMENTO E ESTIMULAÇÃO DO POÇO, REALIZADO MEDIANTE A UTILIZAÇÃO DE COMPRESSOR DE AR PELO MÉTODO DE FLUXO E REFLUXO, INCLUINDO OPERAÇÃO E A INSTALAÇÃO DE COMPRESSOR DE AR, EM CONFORMIDADE COM A NBR12244.","UNID","COEF.","PRECO UNITÁRIO (R$)","TOTAL (R$)"]
[]
[{"$nulls":4},"FORNECIMENTOS"]
[null,"INS. SINAPI","SINAPI",4221,"Óleo diesel","l",4,"3,28",13.12]
[null,"INS. SINAPI","SINAPI",4227,"Óleo Lubrificante.","l",0.1,"17,50",1.75]
[]
[{"$nulls":5},"Sub total:",null,null,14.87]
[{"$nulls":6},"BDI  Materiais",0.1143,1.7]
[{"$nulls":7},"Total Fornecimentos:",16.57]
[{"$nulls":4},"SERVIÇOS"]
[null,"COMP. SINAPI","SINAPI","88316","SERVENTE COM ENCARGOS COMPLEMENTARES","h",2,"16,25",32.5]
[null,"COMP. SINAPI","SINAPI","5953","Compressor","h",3,"36,58",109.74]
[null,"COMP. SINAPI","SINAPI","88292","Operador de Compressor.","h",1,"29,92",29.92]
[{"$nulls":5},"Sub total:",null,null,172.16]
[{"$nulls":6},"BDI  Serviços",0.2336,40.22]
[{"$nulls":7},"Total Serviços:",212.38]
[{"$nulls":5},"CPU-12","PREÇO UNITÁRIO TOTAL:",null,228.95]
[]
[null,"CPU-13","FONTE","Codevasf","FORNECIMENTO E INSTALAÇÃO DE CAP FÊMEA DE PONTA DE TUBO DE 6'', PARA IMPEDIR CONTAMINAÇÃO DO POÇO, INCLUSIVE ANEL DE VEDAÇÃO E BORRACHA.","UNID","COEF.","PRECO UNITÁRIO (R$)","TOTAL (R$)"]
[]
[{"$nulls":4},"FORNECIMENTOS"]
[null,"INS. SINAPI","SINAPI",4227,"Lubrificante.","l",0.01,"17,50",0.18]
[null,"INS. SINAPI","SINAPI",318,"Anel de Borracha de 6\".","un",1,"14,81",14.81]
[null,"CODEVASF","SINAPI","COT. 10","Cap fêmea de 6\".","un",1,115,115]
[{"$nulls":5},"Sub total:",null,null,129.99]
[{"$nulls":6},"BDI  Materiais",0.1143,14.86]
[{"$nulls":7},"Total Fornecimentos:",144.85]
[{"$nulls":4},"SERVIÇOS"]
[null,"COMP. SINAPI","SINAPI","88316","SERVENTE COM ENCARGOS COMPLEMENTARES","h",0.1,"16,25",1.63]
[null,"COMP. SINAPI","SINAPI","90776","Encarregado","h",0.1,"38,55",3.86]
[]
[{"$nulls":5},"Sub total:",null,null,5.49]
[{"$nulls":6},"BDI  Serviços",0.2336,1.28]
[{"$nulls":7},"Total Serviços:",6.77]
[{"$nulls":5},"CPU-13","PREÇO UNITÁRIO TOTAL:",null,151.62]
[]
[null,"CPU-14","FONTE","Codevasf","REALIZAÇÃO DE DESINFECÇÃO DO POÇO, INCLUINDO MATERIAL DE LIMPEZA, INSTALAÇÃO E DESINSTALAÇÃO DE COMPRESSOR, COMBUSTÍVEL E OPERADOR.","UNID","COEF.","PRECO UNITÁRIO (R$)","TOTAL (R$)"]
[]
[{"$nulls":4},"FORNECIMENTOS"]
[null,"INS. SINAPI","SINAPI",4221,"Óleo diesel","l",2.8,"3,28",9.18]
[null,"INS. SINAPI","SINAPI",4227,"Óleo Lubrificante.","l",0.1,"17,50",1.75]
[null,"CODEVASF","SINAPI",16,"Sabão neutro","kg",0.3,"7,96",2.39]
[{"$nulls":5},"Sub total:",null,null,13.32]
[{"$nulls":6},"BDI  Materiais",0.1143,1.52]
[{"$nulls":7},"Total Fornecimentos:",14.84]
[{"$nulls":4},"SERVIÇOS"]
[null,"COMP. SINAPI","SINAPI","88316","SERVENTE COM ENCARGOS COMPLEMENTARES","h",1.7,"16,25",27.63]
[null,"COMP. SINAPI","SINAPI","5953","Compressor","h",2,"36,58",73.16]
[null,"COMP. SINAPI","SINAPI","88292","Operador de Compressor.","h",0.5,"29,92",14.96]
[{"$nulls":5},"Sub total:",null,null,115.75]
[{"$nulls":6},"BDI  Serviços",0.2336,27.04]
[{"$nulls":7},"Total Serviços:",142.79]
[{"$nulls":5},"CPU-14","PREÇO UNITÁRIO TOTAL:",null,157.63]
[]
[null,"CPU-15","FONTE","Codevasf","REALIZAÇÃO DE ANÁLISE FÍSICO-QUÍMICA E BACTERIOLÓGICA DA ÁGUA EM CONFORMIDADE COM A NR 518, INCLUINDO A COLETA, TAXAS E TRANSPORTE.","UNID","COEF.","PRECO UNITÁRIO (R$)","TOTAL (R$)"]
[]
[{"$nulls":4},"FORNECIMENTOS"]
[null,"INS. SINAPI","SINAPI",4221,"Óleo diesel","l",2.8,"3,28",9.18]
[null,"INS. SINAPI","SINAPI",4227,"Óleo Lubrificante.","l",0.1,"17,50",1.75]
[null,"CODEVASF","SINAPI",16,"Sabão neutro","kg",0.3,"7,96",2.39]
[{"$nulls":5},"Sub total:",null,null,13.32]
[{"$nulls":6},"BDI  Materiais",0.1143,1.52]
[{"$nulls":7},"Total Fornecimentos:",14.84]
[{"$nulls":4},"SERVIÇOS"]
[null,"CODEVASF","SINAPI","VEICULO/ TABELA CODEVASF 2019 (B9)","PICK-UP SAVEIRO ROBUST 1.6 TOTAL FLEX 8V","h",1.5,16.05,24.08]
[null,"ORSE","ORSE","5021/ORSE","Análise bacteriológica de água","un",1,33.24,33.24]
[null,"COMPRASNET","COMPRASNET","19143/CATSERV","Análise físico-química de água","un",1,120,120]
[null,"COMP. SINAPI","SINAPI","88284","Motorista","h",1.5,"28,38",42.57]
[null,"COMP. SINAPI","SINAPI","88316","SERVENTE COM ENCARGOS COMPLEMENTARES","h",0.3,"16,25",4.88]
[{"$nulls":5},"Sub total:",null,null,224.77]
[{"$nulls":6},"BDI  Serviços",0.2336,52.51]
[{"$nulls":7},"Total Serviços:",277.27999999999997]
[{"$nulls":5},"CPU-15","PREÇO UNITÁRIO TOTAL:",null,292.12]
[]
[null,"CPU-16","FONTE","Codevasf","REALIZAÇÃO DE TESTE DE VAZÃO E DE BOMBEAMENTO DO POÇO, INCLUINDO OPERAÇÃO E INSTALAÇÃO DE MOTOBOMBA SUBMERSA E GRUPO GERADOR ELETRICO, EM CONFORMIDADE COM A NBR 12244.","UNID","COEF.","PRECO UNITÁRIO (R$)","TOTAL (R$)"]
[]
[{"$nulls":4},"FORNECIMENTOS"]
[null,"INS. SINAPI","SINAPI",4221,"Óleo diesel","l",4.5,"3,28",14.76]
[null,"INS. SINAPI","SINAPI",4227,"Óleo Lubrificante.","l",0.25,"17,50",4.38]
[]
[{"$nulls":5},"Sub total:",null,null,19.14]
[{"$nulls":6},"BDI  Materiais",0.1143,2.19]
[{"$nulls":7},"Total Fornecimentos:",21.33]
[{"$nulls":4},"SERVIÇOS"]
[null,"COMP. SINAPI","SINAPI","96309","Compressor","h",24,"1,27",30.48]
[null,"COMP. SINAPI","SINAPI","88292","Operador de Compressor.","h",10,"29,92",299.2]
[null,"COMP. SINAPI","SINAPI","88316","SERVENTE COM ENCARGOS COMPLEMENTARES","h",12,"16,25",195]
[{"$nulls":5},"Sub total:",null,null,524.67999999999995]
[{"$nulls":6},"BDI  Serviços",0.2336,122.57]
[{"$nulls":7},"Total Serviços:",647.25]
[{"$nulls":5},"CPU-16","PREÇO UNITÁRIO TOTAL:",null,668.58]
[]
[null,"CPU-16","FONTE","Codevasf","OBTENÇÃO JUNTO AOS ÓRGÃOS COMPETENTE DA OUTORGA DE FUNCIONAMENTO E USO DE RECURSOS HÍDRICOS - CPRH/PE.","UNID","COEF.","PRECO UNITÁRIO (R$)","TOTAL (R$)"]
[]
[{"$nulls":4},"FORNECIMENTOS"]
[]
[]
[]
[{"$nulls":5},"Sub total:",null,null,0]
[{"$nulls":6},"BDI  Materiais",0.1143,0]
[{"$nulls":7},"Total Fornecimentos:",0]
[{"$nulls":4},"SERVIÇOS"]
[null,"CODEVASF","CPRH","CPRH","Outorga de uso de recursos hídricos obtido no CPRH-PE.","un",1,1678.86,1678.86]
[]
[]
[{"$nulls":5},"Sub total:",null,null,1678.86]
[{"$nulls":6},"BDI  Serviços",0.2336,392.18]
[{"$nulls":7},"Total Serviços:",2071.04]
[{"$nulls":5},"CPU-16","PREÇO UNITÁRIO TOTAL:",null,2071.04]
[]
[null,"CPU-17","FONTE","Codevasf","CONSTRUÇÃO DE LAJE DE PROTEÇÃO SANITÁRIA EM CONCRETO ARMADO PARA QUALQUER TIPO DE ESTRUTURA, FCK = 15 MPA, VIRADO EM BETONEIRA NA OBRA, INCLUINDO APLICAÇÃO E ADENSAMENTO, FORMA, ESCORAMENTO E FERRAGENS, NAS DIMENSÕES-1,0M X 1,0M X 0,15M, COM DECLIVIDADE DE 2% EM RELAÇÃO AO CENTRO DO POÇO PARA AS BORDAS, EM CONFORMIDADE COM A NBR 12244.","M³","COEF.","PRECO UNITÁRIO (R$)","TOTAL (R$)"]
[]
[{"$nulls":4},"FORNECIMENTOS"]
[null,"INS. SINAPI","SINAPI",1379,"Cimento Portland comum CP II - 32.","kg",340,"0,44",149.6]
[null,"INS. SINAPI","SINAPI",367,"Areia Lavada","m³",0.63,"79,90",50.34]
[null,"INS. SINAPI","SINAPI",4721,"Brita 1","m³",0.37,"59,13",21.88]
[null,"INS. SINAPI","SINAPI",4718,"Brita 2","m³",0.37,"59,13",21.88]
[null,"INS. SINAPI","SINAPI",5075,"Prego de aço 18 x 30","kg",0.7,"11,70",8.19]
[null,"INS. SINAPI","SINAPI",2692,"Desmoldante para forma de madeira","l",0.34,"6,13",2.08]
[{"$nulls":5},"Sub total:",null,null,253.97]
[{"$nulls":6},"BDI  Materiais",0.1143,29.03]
[{"$nulls":7},"Total Fornecimentos:",283]
[{"$nulls":4},"SERVIÇOS"]
[null,"INS. SINAPI","SINAPI",34,"Armação de aço CA 50 - forn. e inst.","kg",20,"5,32",106.4]
[null,"INS. SINAPI","SINAPI",6188,"Forma plana em tábua em madeira de mista.","m²",0.64,"41,49",26.55]
[null,"COMP. SINAPI","SINAPI","87445","Betoneira com capacidade de 400l. Motor Diesel de 7 HP.","h",0.6,"3,15",1.89]
[null,"COMP. SINAPI","SINAPI","88309","Pedreiro","h",3,"20,22",60.66]
[null,"COMP. SINAPI","SINAPI","88316","Servente","h",13,"16,25",211.25]
[{"$nulls":5},"Sub total:",null,null,406.75]
[{"$nulls":6},"BDI  Serviços",0.2336,95.02]
[{"$nulls":7},"Total Serviços:",501.77]
[{"$nulls":5},"CPU-17","PREÇO UNITÁRIO TOTAL:",null,784.77]
[]
[null,"CPU-18","FONTE","Codevasf","CADASTRO DE USO DE ÁGUA SUBTERRANEA - APAC E CPRH/PE.","UNID","COEF.","PRECO UNITÁRIO (R$)","TOTAL (R$)"]
[]
[{"$nulls":4},"FORNECIMENTOS"]
[]
[]
[]
[{"$nulls":5},"Sub total:",null,null,0]
[{"$nulls":6},"BDI  Materiais",0.1143,0]
[{"$nulls":7},"Total Fornecimentos:",0]
[{"$nulls":4},"SERVIÇOS"]
[null,"CODEVASF","CODEVASF","VEICULO/ TABELA CODEVASF 2019 (B9)","PICK-UP SAVEIRO ROBUST 1.6 TOTAL FLEX 8V","h",0.5,16.05,8.0299999999999994]
[null,"COMP. SINAPI","SINAPI","90772","Auxiliar de Escritório","h",4,"19,21",76.84]
[]
[{"$nulls":5},"Sub total:",null,null,84.87]
[{"$nulls":6},"BDI  Serviços",0.2336,19.829999999999998]
[{"$nulls":7},"Total Serviços:",104.7]
[{"$nulls":5},"CPU-18","PREÇO UNITÁRIO TOTAL:",null,104.7]
[]
[null,"CPU-19","FONTE","Codevasf","FORNECIMENTO E INSTALAÇÃO DE TUBO PVC GEO MECANICO STD DN DE 4'' COM LUVAS E ROSCA.","M","COEF.","PRECO UNITÁRIO (R$)","TOTAL (R$)"]
[]
[{"$nulls":4},"FORNECIMENTOS"]
[null,"COMPRASNET","COMPRASNET","COT.12","Tubo PVC Geomecânico STD em DN de 4\" ","m",1,28.25,28.25]
[null,"INS. SINAPI","SINAPI",4221,"Óleo diesel","l",0.2,"3,28",0.66]
[null,"INS. SINAPI","SINAPI",4227,"Óleo lubrificante","l",0.03,"17,50",0.53]
[{"$nulls":5},"Sub total:",null,null,29.44]
[{"$nulls":6},"BDI  Materiais",0.1143,3.36]
[{"$nulls":7},"Total Fornecimentos:",32.799999999999997]
[{"$nulls":4},"SERVIÇOS"]
[null,"COMP. SINAPI","SINAPI","88316","SERVENTE COM ENCARGOS COMPLEMENTARES","h",0.75,"16,25",12.19]
[null,"COMP. SINAPI","SINAPI","90776","Encarregado","h",0.75,"38,55",28.91]
[]
[{"$nulls":5},"Sub total:",null,null,41.1]
[{"$nulls":6},"BDI  Serviços",0.2336,9.6]
[{"$nulls":7},"Total Serviços:",50.7]
[{"$nulls":5},"CPU-19","PREÇO UNITÁRIO TOTAL:",null,83.5]
[]
[null,"CPU-20","FONTE","Codevasf","FORNECIMENTO E INSTALAÇÃO DE FILTRO GEOMECANICO STD DN DE 4'' COM LUVAS E ROSCA..","M","COEF.","PRECO UNITÁRIO (R$)","TOTAL (R$)"]
[]
[{"$nulls":4},"FORNECIMENTOS"]
[null,"COMPRASNET","COMPRASNET","311208/CATMAT","Filtro PVC Geomecânico STD em DN de 4\"","m",1,55,55]
[null,"INS. SINAPI","SINAPI",4221,"Óleo diesel","l",0.2,"3,28",0.66]
[null,"INS. SINAPI","SINAPI",4227,"Óleo lubrificante","l",0.03,"17,50",0.53]
[{"$nulls":5},"Sub total:",null,null,56.19]
[{"$nulls":6},"BDI  Materiais",0.1143,6.42]
[{"$nulls":7},"Total Fornecimentos:",62.61]
[{"$nulls":4},"SERVIÇOS"]
[null,"COMP. SINAPI","SINAPI","88309","Pedreiro","h",0.6,"20,22",12.13]
[null,"COMP. SINAPI","SINAPI","88316","Servente","h",0.6,"16,25",9.75]
[]
[{"$nulls":5},"Sub total:",null,null,21.88]
[{"$nulls":6},"BDI  Serviços",0.2336,5.1100000000000003]
[{"$nulls":7},"Total Serviços:",26.99]
[{"$nulls":5},"CPU-20","PREÇO UNITÁRIO TOTAL:",null,89.6]
[]
[null,"CPU-21","FONTE","Codevasf","FORNECIMENTO E INSTALAÇÃO DE CAP PVC GEOMECÂNICO STD. EM DN 4'' PARA VEDAÇÃO DO FUNDO DO FILTRO, INCLUSIVE ANEL DE VEDAÇÃO E BORRACHA.","M","COEF.","PRECO UNITÁRIO (R$)","TOTAL (R$)"]
[]
[{"$nulls":4},"FORNECIMENTOS"]
[null,"COMPRASNET","COMPRASNET","274092/CATMAT","Cap PVC geomecânico STD. DN 4\".","unid",1,49,49]
[null,"INS. SINAPI","SINAPI",4227,"Lubrificante.","l",0.01,"17,50",0.18]
[null,"INS. SINAPI","SINAPI",311,"Anel de Borracha de 4\".","un",1,"8,45",8.4499999999999993]
[{"$nulls":5},"Sub total:",null,null,57.63]
[{"$nulls":6},"BDI  Materiais",0.1143,6.59]
[{"$nulls":7},"Total Fornecimentos:",64.22]
[{"$nulls":4},"SERVIÇOS"]
[null,"COMP. SINAPI","SINAPI","88309","Pedreiro","h",0.6,"20,22",12.13]
[null,"COMP. SINAPI","SINAPI","88316","Servente","h",0.6,"16,25",9.75]
[]
[{"$nulls":5},"Sub total:",null,null,21.88]
[{"$nulls":6},"BDI  Serviços",0.2336,5.1100000000000003]
[{"$nulls":7},"Total Serviços:",26.99]
[{"$nulls":5},"CPU-21","PREÇO UNITÁRIO TOTAL:",null,91.21]
[]
[null,"CPU-22","FONTE","Codevasf","MONTAGEM, INSTALAÇÃO E DESINSTALAÇÃO DE SONDA - POÇO SEDIMENTAR.","UNID","COEF.","PRECO UNITÁRIO (R$)","TOTAL (R$)"]
[]
[{"$nulls":4},"FORNECIMENTOS"]
[]
[null,"INS. SINAPI","SINAPI",4227,"Lubrificante","l",1,"17,50",17.5]
[null,"INS. SINAPI","SINAPI",4221,"Óleo diesel","l",50,"3,28",164]
[{"$nulls":5},"Sub total:",null,null,181.5]
[{"$nulls":6},"BDI  Materiais",0.1143,20.75]
[{"$nulls":7},"Total Fornecimentos:",202.25]
[{"$nulls":4},"SERVIÇOS"]
[null,"COMP. SINAPI","SINAPI","90776","Encarregado","h",5,"38,55",192.75]
[null,"COMP. SINAPI","SINAPI","88284","Motorista","h",5,"28,38",141.9]
[null,"COMP. SINAPI","SINAPI","88316","SERVENTE COM ENCARGOS COMPLEMENTARES","h",10,"16,25",162.5]
[null,"INS. SINAPI","SINAPI",4778,"Perfuratriz","h",10,"2,70",27]
[{"$nulls":5},"Sub total:",null,null,524.15]
[{"$nulls":6},"BDI  Serviços",0.2336,122.44]
[{"$nulls":7},"Total Serviços:",646.59]
[{"$nulls":5},"CPU-22","PREÇO UNITÁRIO TOTAL:",null,848.84]
[]
[null,"CPU-22A","FONTE","Codevasf","PERFURAÇÃO DE POÇO EM ROCHA SEDIMENTAR COM DIÂMETRO DE 16''.","M","COEF.","PRECO UNITÁRIO (R$)","TOTAL (R$)"]
[]
[{"$nulls":4},"FORNECIMENTOS"]
[]
[]
[]
[{"$nulls":5},"Sub total:",null,null,0]
[{"$nulls":6},"BDI  Materiais",0.1143,0]
[{"$nulls":7},"Total Fornecimentos:",0]
[{"$nulls":4},"SERVIÇOS"]
[null,"COMP. SINAPI","SINAPI","90776","Encarregado","h",1.6,"38,55",61.68]
[null,"COMP. SINAPI","SINAPI","88316","SERVENTE COM ENCARGOS COMPLEMENTARES","h",1.6,"16,25",26]
[null,"COMP. SINAPI","SINAPI","88297","Operador de perfuratriz","h",1.6,"30,59",48.94]
[null,"COMP. SINAPI","SINAPI","96309","Compressor","h",1,"1,27",1.27]
[null,"COMP. SINAPI","SINAPI","5953","Perfuratriz","h",1,"36,58",36.58]
[{"$nulls":5},"Sub total:",null,null,174.47]
[{"$nulls":6},"BDI  Serviços",0.2336,40.76]
[{"$nulls":7},"Total Serviços:",215.23]
[{"$nulls":5},"CPU-22A","PREÇO UNITÁRIO TOTAL:",null,215.23]
[]
[null,"CPU-23","FONTE","Codevasf","PERFURAÇÃO DE POÇO EM ROCHA SEDIMENTAR COM DIÂMETRO 12 1/4''.","M","COEF.","PRECO UNITÁRIO (R$)","TOTAL (R$)"]
[]
[{"$nulls":4},"FORNECIMENTOS"]
[]
[]
[]
[{"$nulls":5},"Sub total:",null,null,0]
[{"$nulls":6},"BDI  Materiais",0.1143,0]
[{"$nulls":7},"Total Fornecimentos:",0]
[{"$nulls":4},"SERVIÇOS"]
[null,"COMP. SINAPI","SINAPI","90776","Encarregado","h",1.4,"38,55",53.97]
[null,"COMP. SINAPI","SINAPI","88316","SERVENTE COM ENCARGOS COMPLEMENTARES","h",1.4,"16,25",22.75]
[null,"COMP. SINAPI","SINAPI","88297","Operador de perfuratriz","h",1.4,"30,59",42.83]
[null,"COMP. SINAPI","SINAPI","96309","Compressor","h",0.9,"1,27",1.1399999999999999]
[null,"COMP. SINAPI","SINAPI","5953","Perfuratriz","h",0.9,"36,58",32.92]
[{"$nulls":5},"Sub total:",null,null,153.61000000000001]
[{"$nulls":6},"BDI  Serviços",0.2336,35.880000000000003]
[{"$nulls":7},"Total Serviços:",189.49]
[{"$nulls":5},"CPU-23","PREÇO UNITÁRIO TOTAL:",null,189.49]
[]
[null,"CPU-24","FONTE","Codevasf","FORNECIMENTO E INSTALAÇÃO DE CAP PVC GEOMECÂNICO REF. EM DN 6'' PARA VEDAÇÃO DO FUNDO DO FILTRO, INCLUSIVE ANEL DE VEDAÇÃO E BORRACHA.","UNID","COEF.","PRECO UNITÁRIO (R$)","TOTAL (R$)"]
[]
[{"$nulls":4},"FORNECIMENTOS"]
[null,"COMPRASNET","COMPRASNET","COT. 10","Cap PVC geomecânico REF. DN 6\".","un",1,115,115]
[null,"INS. SINAPI","SINAPI",4227,"Lubrificante.","l",0.01,"17,50",0.18]
[null,"INS. SINAPI","SINAPI",318,"Anel de Borracha de 6\".","un",1,"14,81",14.81]
[{"$nulls":5},"Sub total:",null,null,129.99]
[{"$nulls":6},"BDI  Materiais",0.1143,14.86]
[{"$nulls":7},"Total Fornecimentos:",144.85]
[{"$nulls":4},"SERVIÇOS"]
[null,"COMP. SINAPI","SINAPI","90776","Encarregado","h",0.2,"38,55",7.71]
[null,"COMP. SINAPI","SINAPI","88316","SERVENTE COM ENCARGOS COMPLEMENTARES","h",0.25,"16,25",4.0599999999999996]
[{"$nulls":5},"Sub total:",null,null,11.77]
[{"$nulls":6},"BDI  Serviços",0.2336,2.75]
[{"$nulls":7},"Total Serviços:",14.52]
[{"$nulls":5},"CPU-24","PREÇO UNITÁRIO TOTAL:",null,159.37]
[]
[null,"CPU-25","FONTE","Codevasf","FORNECIMENTO E INSTALAÇÃO DE CAP PVC GEOMECÂNICO STD. EM DN 6'' PARA VEDAÇÃO DO FUNDO DO FILTRO, INCLUSIVE ANEL DE VEDAÇÃO E BORRACHA.","UNID","COEF.","PRECO UNITÁRIO (R$)","TOTAL (R$)"]
[]
[{"$nulls":4},"FORNECIMENTOS"]
[null,"COMPRASNET","COMPRASNET","COT. 11","Cap PVC geomecânico REF. DN 6\".","un",1,70,70]
[null,"INS. SINAPI","SINAPI",4227,"Lubrificante.","l",0.01,"17,50",0.18]
[null,"INS. SINAPI","SINAPI",318,"Anel de Borracha de 6\".","un",1,"14,81",14.81]
[{"$nulls":5},"Sub total:",null,null,84.99]
[{"$nulls":6},"BDI  Materiais",0.1143,9.7100000000000009]
[{"$nulls":7},"Total Fornecimentos:",94.7]
[{"$nulls":4},"SERVIÇOS"]
[null,"COMP. SINAPI","SINAPI","90776","Encarregado","h",0.2,"38,55",7.71]
[null,"COMP. SINAPI","SINAPI","88316","SERVENTE COM ENCARGOS COMPLEMENTARES","h",0.25,"16,25",4.0599999999999996]
[{"$nulls":5},"Sub total:",null,null,11.77]
[{"$nulls":6},"BDI  Serviços",0.2336,2.75]
[{"$nulls":7},"Total Serviços:",14.52]
[{"$nulls":5},"CPU-25","PREÇO UNITÁRIO TOTAL:",null,109.22]
[]
[null,"CPU-26","FONTE","Codevasf","FORNECIMENTO E INSTALAÇÃO DE REVESTIMENTO DO POÇO EM TUBO PVC GEOMECÂNICO REF EM DN DE 6'' COM LUVAS E ROSCA.","M","COEF.","PRECO UNITÁRIO (R$)","TOTAL (R$)"]
[]
[{"$nulls":4},"FORNECIMENTOS"]
[null,"INS. SINAPI","SINAPI",9850,"Tubo de 6\" de PVC geomecânico REF","m",1,"95,50",95.5]
[null,"INS. SINAPI","SINAPI",4221,"Óleo diesel","l",0.2,"3,28",0.66]
[null,"INS. SINAPI","SINAPI",4227,"Óleo lubrificante","l",0.01,"17,50",0.18]
[{"$nulls":5},"Sub total:",null,null,96.34]
[{"$nulls":6},"BDI  Materiais",0.1143,11.01]
[{"$nulls":7},"Total Fornecimentos:",107.35]
[{"$nulls":4},"SERVIÇOS"]
[null,"COMP. SINAPI","SINAPI","90776","Encarregado","h",0.8,"38,55",30.84]
[null,"COMP. SINAPI","SINAPI","88316","SERVENTE COM ENCARGOS COMPLEMENTARES","h",0.8,"16,25",13]
[{"$nulls":5},"Sub total:",null,null,43.84]
[{"$nulls":6},"BDI  Serviços",0.2336,10.24]
[{"$nulls":7},"Total Serviços:",54.08]
[{"$nulls":5},"CPU-26","PREÇO UNITÁRIO TOTAL:",null,161.43]
[]
[null,"CPU-27","FONTE","Codevasf","FORNECIMENTO E INSTALAÇÃO DE FILTRO EM TUBO DE PVC GEOMECANICO REF. EM DN DE 6'' COM LUVA E ROSCA COM ABERTURAS DE 0,5MM - PARA POÇOS DE 150M ATÉ NO MAXIMO 300M DE PROFUNDIDADE.","M","COEF.","PRECO UNITÁRIO (R$)","TOTAL (R$)"]
[]
[{"$nulls":4},"FORNECIMENTOS"]
[null,"INS. SINAPI","SINAPI",9850,"Tubo de 6\" de PVC geomecânico REF","m",1,"95,50",95.5]
[]
[]
[{"$nulls":5},"Sub total:",null,null,95.5]
[{"$nulls":6},"BDI  Materiais",0.1143,10.92]
[{"$nulls":7},"Total Fornecimentos:",106.42]
[{"$nulls":4},"SERVIÇOS"]
[null,"COMP. SINAPI","SINAPI","90776","Encarregado","h",0.5,"38,55",19.28]
[null,"COMP. SINAPI","SINAPI","88316","SERVENTE COM ENCARGOS COMPLEMENTARES","h",0.5,"16,25",8.1300000000000008]
[{"$nulls":5},"Sub total:",null,null,27.41]
[{"$nulls":6},"BDI  Serviços",0.2336,6.4]
[{"$nulls":7},"Total Serviços:",33.81]
[{"$nulls":5},"CPU-27","PREÇO UNITÁRIO TOTAL:",null,140.22999999999999]
[]
[null,"CPU-28","FONTE","Codevasf","FORNECIMENTO E INSTALAÇÃO DE FILTRO EM TUBO DE PVC GEOMECANICO STD. EM DN DE 6'' COM LUVA E ROSCA COM ABERTURAS DE 0,5MM - PARA POÇOS DE ATÉ 150M DE PROFUNDIDADE.","M","COEF.","PRECO UNITÁRIO (R$)","TOTAL (R$)"]
[]
[{"$nulls":4},"FORNECIMENTOS"]
[null,"COMPRASNET","COMPRASNET","287714/CATMAT","Tubo de 6\" de PVC geomecânico REF","m",1,61.63,61.63]
[]
[]
[{"$nulls":5},"Sub total:",null,null,61.63]
[{"$nulls":6},"BDI  Materiais",0.1143,7.04]
[{"$nulls":7},"Total Fornecimentos:",68.67]
[{"$nulls":4},"SERVIÇOS"]
[null,"COMP. SINAPI","SINAPI","90776","Encarregado","h",0.5,"38,55",19.28]
[null,"COMP. SINAPI","SINAPI","88316","SERVENTE COM ENCARGOS COMPLEMENTARES","h",0.5,"16,25",8.1300000000000008]
[{"$nulls":5},"Sub total:",null,null,27.41]
[{"$nulls":6},"BDI  Serviços",0.2336,6.4]
[{"$nulls":7},"Total Serviços:",33.81]
[{"$nulls":5},"CPU-28","PREÇO UNITÁRIO TOTAL:",null,102.48]
[]
[null,"CPU-29","FONTE","Codevasf","FORNECIMENTO E INSTALAÇÃO DE PRÉ-FILTRO PREENCHIDO COM MATERIAL QUARTZOSO PREVIAMENTE LAVADO, PENEIRADO E SELECIONADO COM GRANULOMETRIA VARIÁVEL DE 2 - 4 MM EM CONFORMIDADE COM NBR 12244.","M³","COEF.","PRECO UNITÁRIO (R$)","TOTAL (R$)"]
[]
[{"$nulls":4},"FORNECIMENTOS"]
[null,"INS. SINAPI","SINAPI",11075,"Areia para leito filtrante, granulometria de 1,68mm a 0,42mm. ","m³",1,"1.308,36",1308.3599999999999]
[]
[]
[{"$nulls":5},"Sub total:",null,null,1308.3599999999999]
[{"$nulls":6},"BDI  Materiais",0.1143,149.55000000000001]
[{"$nulls":7},"Total Fornecimentos:",1457.91]
[{"$nulls":4},"SERVIÇOS"]
[null,"COMP. SINAPI","SINAPI","90776","Encarregado","h",4,"38,55",154.19999999999999]
[null,"COMP. SINAPI","SINAPI","88316","SERVENTE COM ENCARGOS COMPLEMENTARES","h",4,"16,25",65]
[{"$nulls":5},"Sub total:",null,null,219.2]
[{"$nulls":6},"BDI  Serviços",0.2336,51.21]
[{"$nulls":7},"Total Serviços:",270.41000000000003]
[{"$nulls":5},"CPU-29","PREÇO UNITÁRIO TOTAL:",null,1728.32]
[]
[null,"CPU-30","FONTE","Codevasf","REALIZAÇÃO DE TESTE DE VAZÃO E DE BOMBEAMENTO DO POÇO, INCLUINDO OPERAÇÃO E INSTALAÇÃO MOTOR-BOMBA SUBMERSA E GRUPO GERADOR ELETRICO, EM CONFORMIDADE COM A NBR 12244.","UNID","COEF.","PRECO UNITÁRIO (R$)","TOTAL (R$)"]
[]
[{"$nulls":4},"FORNECIMENTOS"]
[null,"INS. SINAPI","SINAPI",4221,"Óleo diesel","l",12,"3,28",39.36]
[null,"INS. SINAPI","SINAPI",4227,"Óleo Lubrificante.","l",1,"17,50",17.5]
[]
[{"$nulls":5},"Sub total:",null,null,56.86]
[{"$nulls":6},"BDI  Materiais",0.1143,6.5]
[{"$nulls":7},"Total Fornecimentos:",63.36]
[{"$nulls":4},"SERVIÇOS"]
[null,"COMP. SINAPI","SINAPI","96309","Compressor","h",24,"1,27",30.48]
[null,"COMP. SINAPI","SINAPI","88292","Operador de Compressor.","h",12,"29,92",359.04]
[null,"COMP. SINAPI","SINAPI","88316","SERVENTE COM ENCARGOS COMPLEMENTARES","h",12,"16,25",195]
[{"$nulls":5},"Sub total:",null,null,584.52]
[{"$nulls":6},"BDI  Serviços",0.2336,136.54]
[{"$nulls":7},"Total Serviços:",721.06]
[{"$nulls":5},"CPU-30","PREÇO UNITÁRIO TOTAL:",null,784.42]
[]
[null,"CPU-31","FONTE","Codevasf","REALIZAÇÃO DE PERFILAGEM GEOFÍSICA DO POÇO EM CONFORMIDADE COM A NBR 12244.","UNID","COEF.","PRECO UNITÁRIO (R$)","TOTAL (R$)"]
[]
[{"$nulls":4},"FORNECIMENTOS"]
[null,"CODEVASF","COTAÇÃOES","COT.14","Sensor sonoro de nível d'água","h",1.8,180.7,325.26]
[]
[]
[{"$nulls":5},"Sub total:",null,null,325.26]
[{"$nulls":6},"BDI  Materiais",0.1143,37.18]
[{"$nulls":7},"Total Fornecimentos:",362.44]
[{"$nulls":4},"SERVIÇOS"]
[null,"INS. SINAPI","SINAPI",2707,"Geólogo","h",2,"84,24",168.48]
[]
[]
[{"$nulls":5},"Sub total:",null,null,168.48]
[{"$nulls":6},"BDI  Serviços",0.2336,39.36]
[{"$nulls":7},"Total Serviços:",207.84]
[{"$nulls":5},"CPU-31","PREÇO UNITÁRIO TOTAL:",null,570.28]
[]
[null,"CPU-32","FONTE","Codevasf","FORNECIMENTO E ASSENTAMENTO DE TUBOS E CONEXÕES EM PVC TIPO EDUTOR, AZUL, DIÂMETRO NOMINAL DE 50 MM -INTERLIGAÇÃO DO POÇO À CAIXA DO RESERVATÓRIO - INCLUSIVE TRANSPORTE.","M","COEF.","PRECO UNITÁRIO (R$)","TOTAL (R$)"]
[]
[{"$nulls":4},"FORNECIMENTOS"]
[null,"INS. SINAPI","SINAPI",20078,"Pasta lubrificante","kg",0.05,"16,53",0.83]
[null,"CODEVASF","COTAÇÃOES","19143/CATMAT","Tubo de PVC azul, diâmetro de 50mm.","m",1,3.43,3.43]
[]
[{"$nulls":5},"Sub total:",null,null,4.26]
[{"$nulls":6},"BDI  Materiais",0.1143,0.49]
[{"$nulls":7},"Total Fornecimentos:",4.75]
[{"$nulls":4},"SERVIÇOS"]
[null,"COMP. SINAPI","SINAPI","88316","Servente","h",0.09,"16,25",1.46]
[null,"COMP. SINAPI","SINAPI","88267","Encanador","h",0.03,"19,81",0.59]
[null,"COMP. SINAPI","SINAPI","5824","Caminhão toco motor 170 cv","un",3.1E-2,"146,08",4.53]
[null,"COMP. SINAPI","SINAPI","88283","Motorista","h",3.7999999999999999E-2,"37,79",1.44]
[{"$nulls":5},"Sub total:",null,null,8.02]
[{"$nulls":6},"BDI  Serviços",0.2336,1.87]
[{"$nulls":7},"Total Serviços:",9.89]
[{"$nulls":5},"CPU-32","PREÇO UNITÁRIO TOTAL:",null,14.64]
[]
[null,"CPU-33","FONTE","Codevasf","ESCAVAÇÃO MANUAL DE VALA DE FUNDAÇÃO EM MATERIAL DE 1ª E 2ª CATEGORIA, COM DIMENSÕES DE: PROF: 0,40 M X LARG: 0,30 M, INCLUINDO REGULARIZAÇÃO MANUAL DO FUNDO DA VALA.","M³","COEF.","PRECO UNITÁRIO (R$)","TOTAL (R$)"]
[]
[{"$nulls":4},"FORNECIMENTOS"]
[{"$nulls":7},""]
[{"$nulls":7},""]
[]
[{"$nulls":5},"Sub total:",null,null,0]
[{"$nulls":6},"BDI  Materiais",0.1143,0]
[{"$nulls":7},"Total Fornecimentos:",0]
[{"$nulls":4},"SERVIÇOS"]
[null,"COMP. SINAPI","SINAPI","88316","Servente","h",1.9,"16,25",30.88]
[null,"COMP. SINAPI","SINAPI","90776","Encarregado","h",0.03,"38,55",1.1599999999999999]
[]
[{"$nulls":5},"Sub total:",null,null,32.04]
[{"$nulls":6},"BDI  Serviços",0.2336,7.48]
[{"$nulls":7},"Total Serviços:",39.520000000000003]
[{"$nulls":5},"CPU-33","PREÇO UNITÁRIO TOTAL:",null,39.520000000000003]
[]
[null,"CPU-34","FONTE","Codevasf","ATERRO MANUAL DE VALAS DE FUNDAÇÃO COM 0,40 M DE PROFUNDIDADE, 0,30 M DE LARGURA, COM AVALIAÇÃO VISUAL DA COMPACTAÇÃO.","M³","COEF.","PRECO UNITÁRIO (R$)","TOTAL (R$)"]
[]
[{"$nulls":4},"FORNECIMENTOS"]
[{"$nulls":7},""]
[{"$nulls":7},""]
[]
[{"$nulls":5},"Sub total:",null,null,0]
[{"$nulls":6},"BDI  Materiais",0.1143,0]
[{"$nulls":7},"Total Fornecimentos:",0]
[{"$nulls":4},"SERVIÇOS"]
[null,"COMP. SINAPI","SINAPI","88316","Servente","h",1.7,"16,25",27.63]
[null,"COMP. SINAPI","SINAPI","90776","Encarregado","h",0.05,"38,55",1.93]
[]
[{"$nulls":5},"Sub total:",null,null,29.56]
[{"$nulls":6},"BDI  Serviços",0.2336,6.91]
[{"$nulls":7},"Total Serviços:",36.47]
[{"$nulls":5},"CPU-34","PREÇO UNITÁRIO TOTAL:",null,36.47]
[]
[null,"CPU-35","FONTE","Codevasf","FORNECIMENTO E ASSENTAMENTO DE TUBOS E CONEXÕES EM PVC, MARROM, DIÂMETROS DE 32MM, SOLDÁVEL - INCLUSIVE TRANSPORTE.","M","COEF.","PRECO UNITÁRIO (R$)","TOTAL (R$)"]
[]
[{"$nulls":4},"FORNECIMENTOS"]
[null,"INS. SINAPI","SINAPI",20078,"Pasta lubrificante","kg",0.05,"16,53",0.83]
[null,"INS. SINAPI","SINAPI",9869,"Tubo de PVC soldavel marrom, diâmetro de 32mm.","m",1,"5,99",5.99]
[null,"INS. SINAPI","SINAPI",122,"Cola de PVC","unid.",0.02,"45,16",0.9]
[{"$nulls":5},"Sub total:",null,null,7.72]
[{"$nulls":6},"BDI  Materiais",0.1143,0.88]
[{"$nulls":7},"Total Fornecimentos:",8.6]
[{"$nulls":4},"SERVIÇOS"]
[null,"COMP. SINAPI","SINAPI","88316","Servente","h",0.3,"16,25",4.88]
[null,"COMP. SINAPI","SINAPI","88267","Encanador","h",0.25,"19,81",4.95]
[null,"COMP. SINAPI","SINAPI","5824","Caminhão toco motor 170 cv","un",3.7999999999999999E-2,"146,08",5.55]
[null,"COMP. SINAPI","SINAPI","88283","Motorista","h",3.7999999999999999E-2,"37,79",1.44]
[]
[{"$nulls":5},"Sub total:",null,null,16.82]
[{"$nulls":6},"BDI  Serviços",0.2336,3.93]
[{"$nulls":7},"Total Serviços:",20.75]
[{"$nulls":5},"CPU-35","PREÇO UNITÁRIO TOTAL:",null,29.35]
[]
[null,"CPU-36","FONTE","Codevasf","FORNECIMENTO E INSTALAÇÃO DE CAIXA D'ÁGUA DE FIBRA DE 5M³, SOBRE BASE DE CONCRETO ARMADO, INCLUÍDO TUBULAÇÃO DE DRENO, LAVAGEM E LADRÃO.","UNID","COEF.","PRECO UNITÁRIO (R$)","TOTAL (R$)"]
[]
[{"$nulls":4},"FORNECIMENTOS"]
[null,"CODEVASF","COMPRASNET","COT.15","Caixa de água de 5m³.","un",1,1145.93,1145.93]
[null,"INS. SINAPI","SINAPI",71,"ADAPTADOR PVC ROSCAVEL C/ FLANGES E ANEL DE VEDACAO P/ CAIXA D' AGUA 1\"","un",1,"14,76",14.76]
[null,"INS. SINAPI","SINAPI",73,"ADAPTADOR PVC ROSCAVEL C/ FLANGES E ANEL DE VEDACAO P/ CAIXA D' AGUA 3/4\"","un",3,"11,02",33.06]
[null,"INS. SINAPI","SINAPI",99,"ADAPTADOR PVC SOLDAVEL C/ FLANGES E ANEL DE VEDACAO P/ CAIXA D' AGUA 50MM X 11/2\"","un",1,"17,01",17.010000000000002]
[null,"INS. SINAPI","SINAPI",6031,"REGISTRO PVC ESFERA BORB C/ROSCA REF 3/4\"","un",2,"10,70",21.4]
[null,"INS. SINAPI","SINAPI",7094,"TE PVC C/ROSCA 90G P/ AGUA FRIA PREDIAL 1\"","un",1,"8,10",8.1]
[null,"INS. SINAPI","SINAPI",7114,"TE PVC SOLD 90G C/ BUCHA LATAO NA BOLSA CENTRAL 32MM X 3/4\"","un",1,"12,19",12.19]
[null,"INS. SINAPI","SINAPI",11831,"Torneira plástica de 1/2\".","un",2,"24,12",48.24]
[null,"INS. SINAPI","SINAPI",9869,"Tubo de PVC soldável de 32mm","m",1,"5,99",5.99]
[{"$nulls":5},"Sub total:",null,null,1306.68]
[{"$nulls":6},"BDI  Materiais",0.1143,149.35]
[{"$nulls":7},"Total Fornecimentos:",1456.03]
[{"$nulls":4},"SERVIÇOS"]
[null,"COMP. SINAPI","SINAPI","88316","Servente","h",5,"16,25",81.25]
[null,"COMP. SINAPI","SINAPI","88267","Encanador","h",5,"19,81",99.05]
[]
[{"$nulls":5},"Sub total:",null,null,180.3]
[{"$nulls":6},"BDI  Serviços",0.2336,42.12]
[{"$nulls":7},"Total Serviços:",222.42]
[{"$nulls":5},"CPU-36","PREÇO UNITÁRIO TOTAL:",null,1678.45]
[]
[null,"CPU-37","FONTE","Codevasf","FORNECIMENTO E MONTAGEM DE CERCA DE PROTEÇÃO CONSTRUÍDA COM MOURÕES DE CONCRETO ARMADO  (H=2,5 M), COM 7 FIOS DE ARAME FARPADO, INCLUINDO CHUMBAMENTO E ARAME DE FIXAÇÃO.","M","COEF.","PRECO UNITÁRIO (R$)","TOTAL (R$)"]
[]
[{"$nulls":4},"FORNECIMENTOS"]
[null,"CODEVASF","COMPRASNET","217045/CATMAT","MOURÃO CONCRETO, TIPO SEÇÃO: QUADRADA, APLICAÇÃO: CERCA ARAME, COMPRIMENTO TOTAL: 2,70M, COMPRIMENTO FORA SOLO: 2,00M, COMPRIMENTO ENTERRADO: 0,70M, CARGA ÚTIL: 100KG, CARGA RUPTURA: 150KG, PESO: 57KG","m³",0.01,26.79,0.27]
[null,"CODEVASF","COMPRASNET","217063/CATMAT","MOURÃO CONCRETO, TIPO SEÇÃO: TÊ, APLICAÇÃO: CERCA ARAME, COMPRIMENTO TOTAL: 3,20M, COMPRIMENTO FORA SOLO: 2,40M, COMPRIMENTO ENTERRADO: 0,80M, CARGA ÚTIL: 120KG, CARGA RUPTURA: 180KG, PESO: 121KG","un",0.66,27.99,18.47]
[null,"INS. SINAPI","SINAPI",340,"Arame farpado 16 bwg 4 x 4\", 23,50 kg/rolo 500 m ","m",6.54,"0,66",4.32]
[null,"INS. SINAPI","SINAPI",344,"Arame galvanizado fio 16 BWG - 1,65m (0,01666 kg/m) ","m",7.0000000000000007E-2,"15,77",1.1000000000000001]
[null,"INS. SINAPI","SINAPI",367,"Areia","m³",0.01,"79,90",0.8]
[null,"INS. SINAPI","SINAPI",1379,"Cimento","Kg",1.8,"0,44",0.79]
[null,"INS. SINAPI","SINAPI",4721,"Brita 1","m³",0.01,"59,13",0.59]
[]
[{"$nulls":5},"Sub total:",null,null,26.34]
[{"$nulls":6},"BDI  Materiais",0.1143,3.01]
[{"$nulls":7},"Total Fornecimentos:",29.35]
[{"$nulls":4},"SERVIÇOS"]
[null,"COMP. SINAPI","SINAPI","88309","Pedreiro","h",0.32,"20,22",6.47]
[null,"COMP. SINAPI","SINAPI","88316","Servente","h",0.32,"16,25",5.2]
[]
[{"$nulls":5},"Sub total:",null,null,11.67]
[{"$nulls":6},"BDI  Serviços",0.2336,2.73]
[{"$nulls":7},"Total Serviços:",14.4]
[{"$nulls":5},"CPU-37","PREÇO UNITÁRIO TOTAL:",null,43.75]
[]
[null,"CPU-38","FONTE","Codevasf","EXECUÇÃO DE BEBEDOURO EM CONCRETO ARMADO, INCLUINDO A INSTALAÇÃO HIDRÁULICA.","UNID","COEF.","PRECO UNITÁRIO (R$)","TOTAL (R$)"]
[]
[{"$nulls":4},"FORNECIMENTOS"]
[null,"INS. SINAPI","SINAPI",43055,"ACO CA-50 1/2\" (12,70 MM)","kg",12,"4,61",55.32]
[null,"INS. SINAPI","SINAPI",43059,"ACO CA-60 - 4,2MM","kg",13,"5,03",65.39]
[null,"INS. SINAPI","SINAPI",32,"ACO CA-50 1/4\" (6,35 MM)","kg",6,"5,61",33.659999999999997]
[null,"INS. SINAPI","SINAPI",370,"Areia Média","m³",0.32,"87,00",27.84]
[null,"INS. SINAPI","SINAPI",1379,"Cimento ","kg",129.13,"0,44",56.82]
[null,"INS. SINAPI","SINAPI",4718,"Pedra Britada nº 2","m³",0.08,"59,13",4.7300000000000004]
[null,"INS. SINAPI","SINAPI",4721,"Pedra Britada nº 1","m³",0.23,"59,13",13.6]
[null,"INS. SINAPI","SINAPI",3767,"LIXA EM FOLHA PARA PAREDE OU MADEIRA, NUMERO 120 (COR VERMELHA)","UN    ",0.12,"0,45",0.05]
[null,"INS. SINAPI","SINAPI",7345,"TINTA LATEX PVA PREMIUM, COR BRANCA","L     ",0.18,"17,77",3.2]
[{"$nulls":5},"Sub total:",null,null,260.61]
[{"$nulls":6},"BDI  Materiais",0.1143,29.79]
[{"$nulls":7},"Total Fornecimentos:",290.39999999999998]
[{"$nulls":4},"SERVIÇOS"]
[null,"COMP. SINAPI","SINAPI","67826","GUINDAUTO HIDRÁULICO, CAPACIDADE MÁXIMA DE CARGA 6200 KG, MOMENTO MÁXIMO DE CARGA 11,7 TM, ALCANCE MÁXIMO HORIZONTAL 9,70 M, INCLUSIVE CAMINHÃO TOCO PBT 16.000 KG, POTÊNCIA DE 189 CV - CHP DIURNO. AF_06/2014","h",3,"155,22",465.66]
[null,"COMP. SINAPI","SINAPI","87445","Betoneira 400 l com carregador","h",0.68,"3,15",2.14]
[null,"COMP. SINAPI","SINAPI","88377","Operador de Betoneira","h",0.68,"25,99",17.670000000000002]
[null,"COMP. SINAPI","SINAPI","88310","PINTOR COM ENCARGOS COMPLEMENTARES","H     ",0.3,"21,33",6.4]
[null,"COMP. SINAPI","SINAPI","100301","AJUDANTE DE PINTOR COM ENCARGOS COMPLEMENTARES","H     ",0.1,"17,00",1.7]
[null,"COMP. SINAPI","SINAPI","88245","Armador","h",3,"20,10",60.3]
[null,"COMP. SINAPI","SINAPI","88262","Carpinteiro","h",3,"20,06",60.18]
[null,"COMP. SINAPI","SINAPI","88316","Servente","h",7.2,"16,25",117]
[null,"COMP. SINAPI","SINAPI","88309","Pedreiro","h",6,"20,22",121.32]
[{"$nulls":5},"Sub total:",null,null,852.37]
[{"$nulls":6},"BDI  Serviços",0.2336,199.11]
[{"$nulls":7},"Total Serviços:",1051.48]
[{"$nulls":5},"CPU-38","PREÇO UNITÁRIO TOTAL:",null,1341.88]
[]
[null,"CPU-39","FONTE","Codevasf","FORNECIMENTO, MONTAGEM E INSTALAÇÃO DE PORTÃO DE FERRO TUBULAR, TELA EM AÇO GALVANIZADO, DOBRADIÇAS E FECHADURA PARA PASSAGEM DE PEDESTRE, MEDINDO 1,80M X 1,10M, INCLUINDO MOURÃO DE SUSTENTAÇÃO.","UNID","COEF.","PRECO UNITÁRIO (R$)","TOTAL (R$)"]
[]
[{"$nulls":4},"FORNECIMENTOS"]
[null,"INS. SINAPI","SINAPI",546,"Barra ferro retangular chata qualquer bitola com espessura de 3/16\".","kg",17,"5,06",86.02]
[null,"INS. SINAPI","SINAPI",557,"Barra ferro retangular chata 1.1/2\" X 1/2\" - (3,79kg/m).","m",7.4,"19,42",143.71]
[null,"INS. SINAPI","SINAPI",10932,"Tela arame galvanizado fio 8 BWG (4,19mm) malha 2\" (5X5cm) quadrada ou losango com altura igual a 1,80m.","m²",1.98,"77,62",153.69]
[null,"INS. SINAPI","SINAPI",1379,"Cimento Portland comum CP II - 32.","kg",91.8,"0,44",40.39]
[null,"INS. SINAPI","SINAPI",367,"Areia Lavada","m³",0.1701,"79,90",13.59]
[null,"INS. SINAPI","SINAPI",4721,"Brita 1","m³",9.9900000000000003E-2,"59,13",5.91]
[null,"INS. SINAPI","SINAPI",4718,"Brita 2","m³",9.9900000000000003E-2,"59,13",5.91]
[null,"INS. SINAPI","SINAPI",34,"Armação de aço CA 50 - forn. e inst.","kg",5.4,"5,32",28.73]
[null,"INS. SINAPI","SINAPI",6188,"Forma plana em tábua em madeira de mista.","m²",0.17280000000000001,"41,49",7.17]
[null,"INS. SINAPI","SINAPI",5075,"Prego de aço 18 x 30","kg",0.189,"11,70",2.21]
[null,"INS. SINAPI","SINAPI",2692,"Desmoldante para forma de madeira","l",9.1800000000000007E-2,"6,13",0.56000000000000005]
[null,"INS. SINAPI","SINAPI",3767,"LIXA EM FOLHA PARA PAREDE OU MADEIRA, NUMERO 120 (COR VERMELHA)","UN    ",0.46800000000000003,"0,45",0.21]
[null,"INS. SINAPI","SINAPI",7345,"TINTA LATEX PVA PREMIUM, COR BRANCA","L     ",0.70199999999999996,"17,77",12.47]
[null,"INS. SINAPI","SINAPI",3768,"Lixa para ferro","un",0.40799999999999997,"1,90",0.78]
[null,"INS. SINAPI","SINAPI",7293,"Tinta grafite esmalte protetora de superfície metálica","l",0.442,"25,41",11.23]
[{"$nulls":5},"Sub total:",null,null,512.58000000000004]
[{"$nulls":6},"BDI  Materiais",0.1143,58.59]
[{"$nulls":7},"Total Fornecimentos:",571.16999999999996]
[{"$nulls":4},"SERVIÇOS"]
[null,"COMP. SINAPI","SINAPI","88310","PINTOR COM ENCARGOS COMPLEMENTARES","H     ",3.21,"21,33",68.47]
[null,"COMP. SINAPI","SINAPI","100301","AJUDANTE DE PINTOR COM ENCARGOS COMPLEMENTARES","H     ",1.07,"17,00",18.190000000000001]
[null,"COMP. SINAPI","SINAPI","88316","Servente","h",6.6660000000000004,"16,25",108.32]
[null,"COMP. SINAPI","SINAPI","88309","Pedreiro","h",6.59,"20,22",133.25]
[{"$nulls":5},"Sub total:",null,null,328.23]
[{"$nulls":6},"BDI  Serviços",0.2336,76.67]
[{"$nulls":7},"Total Serviços:",404.9]
[{"$nulls":5},"CPU-39","PREÇO UNITÁRIO TOTAL:",null,976.07]
[]
[null,"CPU-40","FONTE","Codevasf","EXECUÇÃO DE BASE DE SUSTENTAÇÃO DO RESERVATÓRIO EM CONCRETO ARMADO, DIÂMETRO DE 2,06M E ALTURA DE 1,10M, CONFORME PROJETO.","UNID","COEF.","PRECO UNITÁRIO (R$)","TOTAL (R$)"]
[]
[{"$nulls":4},"FORNECIMENTOS"]
[null,"INS. SINAPI","SINAPI",43059,"ACO CA-60 - 5,0MM","kg",5.6,"5,03",28.17]
[null,"INS. SINAPI","SINAPI",43059,"ACO CA-60 - 4,2MM","kg",3.2,"5,03",16.100000000000001]
[null,"INS. SINAPI","SINAPI",7155,"TELA ACO SOLDADA NERVURADA CA-60, Q-138, (2,20KG/M2), DIÂMETRO DO FIO =4,2MM, LARGURA=2,45 X 120 METROS DE COMPRIMENTO, ESPAÇAMENTO DA MALHA = 10 X 10 CM","m2",6,"12,14",72.84]
[null,"INS. SINAPI","SINAPI",370,"Areia Média","m³",1.36,"87,00",118.32]
[null,"INS. SINAPI","SINAPI",1379,"Cimento ","kg",544.44000000000005,"0,44",239.55]
[null,"INS. SINAPI","SINAPI",4718,"Pedra Britada nº 2","m³",0.33,"59,13",19.510000000000002]
[null,"INS. SINAPI","SINAPI",4721,"Pedra Britada nº 1","m³",0.98,"59,13",57.95]
[null,"INS. SINAPI","SINAPI",3767,"LIXA EM FOLHA PARA PAREDE OU MADEIRA, NUMERO 120 (COR VERMELHA)","UN    ",0.12,"0,45",0.05]
[null,"INS. SINAPI","SINAPI",7345,"TINTA LATEX PVA PREMIUM, COR BRANCA","L     ",0.18,"17,77",3.2]
[{"$nulls":5},"Sub total:",null,null,555.69000000000005]
[{"$nulls":6},"BDI  Materiais",0.1143,63.52]
[{"$nulls":7},"Total Fornecimentos:",619.21]
[{"$nulls":4},"SERVIÇOS"]
[null,"COMP. SINAPI","SINAPI","67826","GUINDAUTO HIDRÁULICO, CAPACIDADE MÁXIMA DE CARGA 6200 KG, MOMENTO MÁXIMO DE CARGA 11,7 TM, ALCANCE MÁXIMO HORIZONTAL 9,70 M, INCLUSIVE CAMINHÃO TOCO PBT 16.000 KG, POTÊNCIA DE 189 CV - CHP DIURNO. AF_06/2014","h",3,"155,22",465.66]
[null,"COMP. SINAPI","SINAPI","87445","Betoneira 400 l com carregador","h",2.8548,"3,15",8.99]
[null,"COMP. SINAPI","SINAPI","88377","Operador de Betoneira","h",2.8548,"25,99",74.2]
[null,"COMP. SINAPI","SINAPI","88310","PINTOR COM ENCARGOS COMPLEMENTARES","H     ",0.3,"21,33",6.4]
[null,"COMP. SINAPI","SINAPI","100301","AJUDANTE DE PINTOR COM ENCARGOS COMPLEMENTARES","H     ",0.1,"17,00",1.7]
[null,"COMP. SINAPI","SINAPI","88309","Pedreiro","h",6,"20,22",121.32]
[null,"COMP. SINAPI","SINAPI","88316","Servente","h",11.054399999999999,"16,25",179.63]
[null,"COMP. SINAPI","SINAPI","88245","Armador","h",3,"20,10",60.3]
[null,"COMP. SINAPI","SINAPI","88262","Carpinteiro","h",3,"20,06",60.18]
[{"$nulls":5},"Sub total:",null,null,978.38]
[{"$nulls":6},"BDI  Serviços",0.2336,228.55]
[{"$nulls":7},"Total Serviços:",1206.93]
[{"$nulls":5},"CPU-40","PREÇO UNITÁRIO TOTAL:",null,1826.14]
[]
[null,"CPU-41","FONTE","Codevasf","LOCAÇÃO DE REDE DE ADUTORA PARA INTERLIGAÇÃO DO POÇO AO RESERVATORIO E DESTE AO BEBEDOURO.","M","COEF.","PRECO UNITÁRIO (R$)","TOTAL (R$)"]
[]
[{"$nulls":4},"FORNECIMENTOS"]
[]
[]
[{"$nulls":5},"Sub total:",null,null,0]
[{"$nulls":6},"BDI  Materiais",0.1143,0]
[{"$nulls":7},"Total Fornecimentos:",0]
[{"$nulls":4},"SERVIÇOS"]
[null,"ORSE","ORSE","6573/ORSE","INSTRUMENTAL DE TOPOGRAFIA ","h",1,6.33,6.33]
[null,"COMP. SINAPI","SINAPI","88288","NIVELADOR COM ENCARGOS COMPLEMENTARES","H     ",1,"14,72",14.72]
[null,"COMP. SINAPI","SINAPI","90781","TOPOGRAFO COM ENCARGOS COMPLEMENTARES","H     ",1,"25,06",25.06]
[null,"COMP. SINAPI","SINAPI","88253","AUXILIAR DE TOPÓGRAFO COM ENCARGOS COMPLEMENTARES","H     ",2,"12,44",24.88]
[{"$nulls":5},"Sub total:",null,null,70.989999999999995]
[{"$nulls":6},"BDI  Serviços",0.2336,16.579999999999998]
[{"$nulls":7},"Total Serviços:",87.57]
[{"$nulls":5},"CPU-41","PREÇO UNITÁRIO TOTAL:",null,87.57]
[]
[null,"CPU-42","FONTE","Codevasf","SISTEMA GRID 1","UNID","COEF.","PRECO UNITÁRIO (R$)","TOTAL (R$)"]
[]
[{"$nulls":4},"FORNECIMENTOS"]
[null,"COTAÇÃO","Cotação de Mercdo","COT. 01","Fornecimento de kit para bombeamento com suprimento por energia solar contendo: painel metálico, cabo de interligação CC painel solar -inversor, sensor de fluxo, inversor de frequência e bomba submersa conforme especificado para atendimento ao sistema GRID 1, capaz de alimentar motor de 0,75cv, 60mca / 2m3/h","unid ",1,7932.25,7932.25]
[null,"COTAÇÃO","Cotação de Mercdo","COT. 02","Fornecimento de Painel solar conforme especificação","unid",4,799,3196]
[null,"ORSE","ORSE","3684/ORSE","Disjuntor bipolar 20 A, padrão DIN (linha branca), curva B, corrente de interrupção 5KA, ref.: Siemens 5SX1 ou similar.","unid",1,29.9,29.9]
[null,"ORSE","ORSE","12365/ORSE","Disjuntor monopolar 2 A, padrão DIN (linha branca), curva de disparo C, corrente de interrupção 5KA, ref.: Siemens 5 SX11027 ou similar. (liga/desliga sistema)","unid",1,41.25,41.25]
[null,"INS. SINAPI","SINAPI",39272,"Curva 90 graus, curta, de pvc rigido roscavel, de 3/4\", para eletroduto","unid",2,"1,99",3.98]
[null,"ORSE","ORSE","01399/ORSE","Luva eletroduto pvc roscável, d= 3/4\"","unid",2,0.67,1.34]
[null,"ORSE","ORSE","00872/ORSE ","Eletroduto pvc roscável, d= 3/4","m",6,2.76,16.559999999999999]
[null,"COTAÇÃO","Cotação de Mercdo","COT. 03","Fornecimento de Estrutura metálica compatível com a quantidade de painéis do sistema GRID 1","unid",1,4061.26,4061.26]
[{"$nulls":5},"Sub total:",null,null,15282.54]
[{"$nulls":6},"BDI  Materiais",0.1143,1746.79]
[{"$nulls":7},"Total Fornecimentos:",17029.330000000002]
[{"$nulls":4},"SERVIÇOS"]
[null,"COMP. SINAPI","SINAPI","88266","Eletrotecnico ","H",10,"22,05",220.5]
[null,"COMP. SINAPI","SINAPI","88278","Montador de estruturas metalicas ","H",8,"27,38",219.04]
[{"$nulls":5},"Sub total:",null,null,439.54]
[{"$nulls":6},"BDI  Serviços",0.2336,102.68]
[{"$nulls":7},"Total Serviços:",542.22]
[{"$nulls":5},"CPU-42","PREÇO UNITÁRIO TOTAL:",null,17571.55]
[]
[null,"CPU-43","FONTE","Codevasf","SISTEMA GRID 2","UNID","COEF.","PRECO UNITÁRIO (R$)","TOTAL (R$)"]
[]
[{"$nulls":4},"FORNECIMENTOS"]
[null,"COTAÇÃO","Cotação de Mercdo","COT. 04","Fornecimento de kit para bombeamento com suprimento por energia solar contendo: painel metálico, cabo de interligação CC painel solar -inversor, sensor de fluxo, inversor de frequência e bomba submersa conforme especificado para atendimento ao sistema GRID 2, capaz de alimentar motor de 5cv, 200mca / 4m3/h","unid ",1,19384,19384]
[null,"COTAÇÃO","Cotação de Mercdo","COT. 02","Fornecimento de Painel solar conforme especificação","unid",16,750,12000]
[null,"ORSE","ORSE","3684/ORSE","03684/ORSE Disjuntor bipolar 20 A, padrão DIN (linha branca), curva B, corrente de interrupção 5KA, ref.: Siemens 5SX1 ou similar.","unid",1,29.9,29.9]
[null,"ORSE","ORSE","12365/ORSE","Disjuntor monopolar 2 A, padrão DIN (linha branca), curva de disparo C, corrente de interrupção 5KA, ref.: Siemens 5 SX11027 ou similar. (liga/desliga sistema)","unid",1,41.25,41.25]
[null,"INS. SINAPI","SINAPI",39273," Curva 90 graus, curta, de pvc rigido roscavel, de 1\", para eletroduto","unid",2,"2,75",5.5]
[null,"ORSE","ORSE","01400/ORSE","Luva eletroduto pvc roscável, d=1 \"","unid",2,0.94,1.88]
[null,"COTAÇÃO","Cotação de Mercdo","COT. 05","Fornecimento e instalação de Estrutura metálica compatível com a quantidade de painéis do sistema GRID 2","unid",1,8056.1,8056.1]
[null,"ORSE","ORSE","00873/ORSE ","Eletroduto pvc roscável, d=1 \"","m",6,4.32,25.92]
[{"$nulls":5},"Sub total:",null,null,39544.550000000003]
[{"$nulls":6},"BDI  Materiais",0.1143,4519.9399999999996]
[{"$nulls":7},"Total Fornecimentos:",44064.49]
[{"$nulls":4},"SERVIÇOS"]
[null,"COMP. SINAPI","SINAPI","88266","Eletrotecnico ","H",12,"22,05",264.60000000000002]
[null,"COMP. SINAPI","SINAPI","88278","Montador de estruturas metalicas ","H",11,"27,38",301.18]
[{"$nulls":5},"Sub total:",null,null,565.78]
[{"$nulls":6},"BDI  Serviços",0.2336,132.16999999999999]
[{"$nulls":7},"Total Serviços:",697.95]
[{"$nulls":5},"CPU-43","PREÇO UNITÁRIO TOTAL:",null,44762.44]
[]
[null,"CPU-44","FONTE","Codevasf","Fornecimento de cabo de cobre # 3 x 4mm2 + 1 x 4mm2 conforme especificação ","M","COEF.","PRECO UNITÁRIO (R$)","TOTAL (R$)"]
[]
[null,"INS. SINAPI","SINAPI",1021,"Fornecimento de cabo de cobre # 3 x 4mm2 + 1 x 4mm2 conforme especificação ","M",1,"3,46",3.46]
[{"$nulls":5},"Sub total:",null,null,3.46]
[{"$nulls":5},0.1143,null,null,0.4]
[{"$nulls":5},"CPU-44","PREÇO UNITÁRIO TOTAL:",null,3.86]
[]
[null,"CPU-45","FONTE","Codevasf","Fornecimento de cabo de cobre # 3 x 6mm2 + 1 x 6mm2 conforme especificação","M","COEF.","PRECO UNITÁRIO (R$)","TOTAL (R$)"]
[]
[null,"INS. SINAPI","SINAPI",994,"Fornecimento de cabo de cobre # 3 x 6mm2 + 1 x 6mm2 conforme especificação","M",1,"4,72",4.72]
[{"$nulls":5},"Sub total:",null,null,4.72]
[{"$nulls":5},0.1143,null,null,0.54]
[{"$nulls":5},"CPU-45","PREÇO UNITÁRIO TOTAL:",null,5.26]
[]
[null,"CPU-46","FONTE","Codevasf","Fornecimento de cabo de cobre # 3 x 10mm2 + 1 x 10mm2 conforme especificação","MÊS","COEF.","PRECO UNITÁRIO (R$)","TOTAL (R$)"]
[]
[null,"INS. SINAPI","SINAPI",980,"Fornecimento de cabo de cobre # 3 x 10mm2 + 1 x 10mm2 conforme especificação","M",1,"6,94",6.94]
[{"$nulls":5},"Sub total:",null,null,6.94]
[{"$nulls":5},0.1143,null,null,0.79]
[{"$nulls":5},"CPU-46","PREÇO UNITÁRIO TOTAL:",null,7.73]
[]
[null,"CPU-47","FONTE","Codevasf","FORNECIMENTO DE MATERIAL DE APOIO A FISCALIZAÇÃO.","M","COEF.","PRECO UNITÁRIO (R$)","TOTAL (R$)"]
[]
[{"$nulls":4},"FORNECIMENTOS"]
[null,"CODEVASF","COMPRASNET","COT. 16","GPS portátil com bússola de 3 eixos, visor colorido e nítido de 5,6 cm (2,2 pol).","un",0.03,1629.99,48.9]
[null,"CODEVASF","COMPRASNET","COT. 17","NOTEBOOK - TELA:SUPERIOR A 14 POL, MEMÓRIA RAM:5 A 8 GB.","un",0.03,3325,99.75]
[{"$nulls":5},"Sub total:",null,null,148.65]
[{"$nulls":6},"BDI  Materiais",0.1143,16.989999999999998]
[{"$nulls":7},"Total Fornecimentos:",165.64]
[{"$nulls":4},"SERVIÇOS"]
[]
[]
[{"$nulls":5},"Sub total:",null,null,0]
[{"$nulls":6},"BDI  Serviços",0.2336,0]
[{"$nulls":7},"Total Serviços:",0]
[{"$nulls":5},"CPU-47","PREÇO UNITÁRIO TOTAL:",null,165.64]
[]
[null,"CPU-48","FONTE","Codevasf","FORNECIMENTO DE VEÍCULO 4X4 À FISCALIZAÇÃO COM SEGURO, TAXAS DE LICENCIAMENTO, REVISÃO PERIÓDICA, MANUTENÇÃO, COMBUSTÍVEL E PNEUS.","MÊS","COEF.","PRECO UNITÁRIO (R$)","TOTAL (R$)"]
[]
[]
[{"$nulls":4},"CAMINHONETE UTILITÁRIA CABINE DUPLA - CD SR 3.0 DIESEL 4X4 163 CV"]
[null,null,null,"1.",null,null,null,"Depreciação mensal do equipamento:",1499]
[null,"CODEVASF","tabela fipe","COT. 19","Preço de Aquisição ","unid",1,119920,119920]
[{"$nulls":4},"Tempo previsto de vida útil (meses)","meses",48]
[{"$nulls":4},"Previsão de recup. Na venda do bem usado","(%)",0.4]
[null,null,null,"2.",null,null,null,"Juros pelo Capital empregado:",74.95]
[{"$nulls":4},"Taxa mensal de Juros ","(%)",0.05]
[null,null,null,"3.",null,null,null,"Conservação e manutenção :",1499]
[{"$nulls":4},"Taxa de gastos s/a deprec. Inc. seguros (%)","(%)",1]
[null,null,null,"4.",null,null,null,"Combustível:",984]
[{"$nulls":4},"Média mensal de quilômetro por veículo","km",3000]
[null,"INS. SINAPI","SINAPI",4221,"Preço do litro de combustível","litro",1,"3,28"]
[{"$nulls":4},"Quilômetros rodados com um litro combustivel","km/l",10]
[null,null,null,"5.",null,null,null,"Lubrificantes:",38.33]
[{"$nulls":4},"Quilometragem do Contrato ","km",36000]
[{"$nulls":4},"Franquia por troca de óleo (km)","km",5000]
[null,"INS. SINAPI","SINAPI",4227,"Preço do litro de óleo","litro",1,"17,50"]
[{"$nulls":4},"Quantidade de litros de óleo por troca","litro",3.65]
[{"$nulls":4},"Quantidade de dias do Contrato","dias",360]
[null,null,null,"6.",null,null,null,"Pneus:",259.19]
[{"$nulls":4},"Quilometragem do Contrato ","km",36000]
[{"$nulls":4},"Vida do Pneu em quilômetros","km",45000]
[{"$nulls":4},"Quantidade de pneus","unid",5]
[null,"CODEVASF","Cotação","COT. 20","Preço do Pneu","unid",1,777.56]
[{"$nulls":4},"Quantidade de dias do contrato ","dias",360]
[null,null,null,"7.",null," ",null,"Custo Mensal - Sem Motorista:",4354.47]
[{"$nulls":4},"Sem Motorista","mês",1,145.15]
[{"$nulls":4},"Custo Direto p/ km Rodado"]
[{"$nulls":4},"Sem Motorista","km",1,1.45]
[{"$nulls":5},"Sub total:",null,null,4354.47]
[{"$nulls":6},"BDI  Serviços",0.2336,1017.2]
[{"$nulls":7},"Total Serviços:",5371.67]
[{"$nulls":5},"CPU-48","PREÇO UNITÁRIO TOTAL:",null,5371.67]

{"sheet":"CPU POÇOS","index":5,"n_rows":110,"n_cols":13,"rows_kept":110,"cut":false,"hidden":true,"merged":[[109,1,109,7],[76,1,76,8],[92,1,92,7],[99,1,99,8],[107,1,107,7],[94,1,94,7],[1,3,1,8],[2,1,2,6],[2,7,2,8],[29,1,29,7],[3,1,3,6],[4,1,4,8],[7,1,7,7],[8,1,8,8],[12,1,12,7],[13,1,13,8],[16,1,16,7],[17,1,17,8],[26,1,26,7],[27,1,27,7],[28,3,28,7],[51,1,51,8],[39,3,39,8],[40,1,40,6],[40,7,40,8],[31,1,31,7],[41,1,41,6],[42,1,42,8],[45,1,45,7],[46,1,46,8],[50,1,50,7],[69,1,69,7],[54,1,54,7],[55,1,55,8],[64,1,64,7],[65,1,65,7],[66,3,66,7],[67,1,67,7]]}
[]
[null,"CODEVASF","4.13"," COMPOSIÇÃO DE PREÇO UNITÁRIO"]
[null,"OBRA: Perfuração e Instalação de Poços Tubulares.",{"$nulls":5},"DATA:   Abril/2012"]
[null,"SERVIÇO : Elaboração de projeto e execução de rede elétrica de baixa tensão, extensão media de 200m, com cabo de aluminio de 25mm² (3+1).",{"$nulls":5},"UNIDADE: ","un"]
[null,"EQUIPAMENTO",{"$nulls":8},"poste","rede","projeto"]
[null,"DISCRIMINAÇÃO","UNID.","QUANT.","PROD","IMPROD","P.UNIT. PROD","P.UNIT. IMPR","P.TOTAL"]
[null,"GUINCHO TIPO MUNCK CAP * 6T * MONTADO EM CAMINHAO CARROCERIA, OU EQUIV SINAPI 3356","h",4,1,null,148.5,null,{"$f":"D7*E7*G7+D7*F7*H7","v":594},null,null,null,{"$f":"I7","v":594}]
[null,"SUB-TOTAL",{"$nulls":6},{"$f":"SUM(I7:I7)","v":594},null,{"$f":"SUM(K7:K7)","v":0},{"$f":"SUM(L7:L7)","v":0},{"$f":"SUM(M7:M7)","v":594}]
[null,"MATERIAL"]
[null,"DISCRIMINAÇÃO","UNID.","QUANT.",null,null,null,"P.UNIT.","P.TOTAL"]
[null,"Cabo de aluminio 0,6/1kv multiplexados 1x1x16 +16mm²","m",220,"ORSE","2633",null,2.15,{"$f":"ROUND(D11*H11,2)","v":473},null,null,{"$f":"I11","v":473}]
[null,"POSTE DE CONCRETO DUPLO T, 100KG, H = 8M DE ACORDO COM NBR 8451","un",4,"SINAPI","13334",null,228.33,{"$f":"ROUND(D12*H12,2)","v":913.32},null,{"$f":"I12","v":913.32}]
[null,"SUB-TOTAL",{"$nulls":6},{"$f":"SUM(I11:I12)","v":1386.32},null,{"$f":"SUM(K11:K12)","v":913.32},{"$f":"SUM(L11:L12)","v":473},{"$f":"SUM(M11:M12)","v":0}]
[null,"SERVIÇOS - COMPOSIÇÕES AUXILIARES"]
[null,"DISCRIMINAÇÃO","UNID.","QUANT.",null,null,null,"P.UNIT.","P.TOTAL"]
[{"$nulls":8},{"$f":"D16*H16","v":0}]
[{"$nulls":8},{"$f":"SUM(I16:I16)","v":0}]
[null,"MÃO DE OBRA"]
[null,"DISCRIMINAÇÃO","UNID.","QUANT.",null,null,null,"P.UNIT.","P.TOTAL"]
[null,"Engenheiro elétrico júnior","mês",0.05,null,null,null,5286.69,{"$f":"ROUND(D20*H20,2)","v":264.33},null,null,null,{"$f":"I20","v":264.33}]
[null,"Cadista.","mês",0.05,null,null,null,1973.76,{"$f":"ROUND(D21*H21,2)","v":98.69},null,null,null,{"$f":"I21","v":98.69}]
[null,"Topografo.","h",5,null,null,null,5.97,29.85,null,null,null,{"$f":"I22","v":29.85}]
[null,"Auxiliar de topografia.","h",22.65,null,null,null,1.99,45.07,null,null,null,{"$f":"I23","v":45.07}]
[null,"Eletricista montador.","h",8,null,null,null,4.1100000000000003,32.880000000000003,null,null,{"$f":"I24","v":32.880000000000003}]
[null,"Auxiliar prático","h",13,null,null,null,3.38,43.94,null,null,{"$f":"I25","v":43.94}]
[null,"Servente.","h",13,null,null,null,3.09,40.17,null,{"$f":"I26","v":40.17}]
[null,"Leis Sociais: 127,96 %",{"$nulls":6},{"$f":"SUM(I20:I26)*1.2796","v":710.09},null,{"$f":"SUM(K20:K26)*1.2796","v":51.4},{"$f":"SUM(L20:L26)*1.2796","v":98.3},{"$f":"SUM(M20:M26)*1.2796","v":560.39}]
[null,"SUB-TOTAL",{"$nulls":6},{"$f":"SUM(I20:I27)","v":1265.02},null,{"$f":"SUM(K20:K27)","v":91.57},{"$f":"SUM(L20:L27)","v":175.12},{"$f":"SUM(M20:M27)","v":998.33}]
[null,"PRODUÇÃO DA EQUIPE",1,"CUSTO ",{"$nulls":4},{"$f":"I28+I17+I13+I8","v":3245.34},null,{"$f":"K28+K17+K13+K8","v":1004.89},{"$f":"L28+L17+L13+L8","v":648.12},{"$f":"M28+M17+M13+M8","v":1592.33}]
[{"$nulls":8},{"$f":"I29/C29","v":3245.34},null,{"$f":"K29/C29","v":1004.89},{"$f":"L29/C29","v":648.12},{"$f":"M29/C29","v":1592.33}]
[null,"BDI          ",22.5,"%",{"$nulls":4},{"$f":"C31/100*I30","v":730.2},null,{"$f":"C31/100*K30","v":226.1},{"$f":"C31/100*L30","v":145.83000000000001},{"$f":"C31/100*M30","v":358.27}]
[null,"TOTAL DO SERVIÇO - R$",{"$nulls":6},{"$f":"SUM(I30:I31)","v":3975.54},null,{"$f":"SUM(K30:K31)","v":1230.99},{"$f":"SUM(L30:L31)","v":793.95},{"$f":"SUM(M30:M31)","v":1950.6}]
{"$rows_empty":7}
[null,"CODEVASF","6.1"," COMPOSIÇÃO DE PREÇO UNITÁRIO"]
[null,"OBRA: Perfuração e Instalação de Poços Tubulares.",{"$nulls":5},"DATA:   Abril/2012"]
[null,"SERVIÇO : Elaboração de projeto e execução de rede elétrica de baixa tensão, extensão = 250m, segundo padrão CELPE com capacidade de suportar a carga do equipamento instalado. O projeto devera ser aprovado pela CELPE.",{"$nulls":5},"UNIDADE: ","un",184852]
[null,"EQUIPAMENTO",{"$nulls":8},"poste","rede","projeto"]
[null,"DISCRIMINAÇÃO","UNID.","QUANT.","PROD","IMPROD","P.UNIT. PROD","P.UNIT. IMPR","P.TOTAL"]
[null,"GUINCHO TIPO MUNCK CAP * 6T * MONTADO EM CAMINHAO CARROCERIA, OU EQUIV SINAPI 3356","h",4,1,null,148.5,null,{"$f":"D45*E45*G45+D45*F45*H45","v":594},null,null,null,{"$f":"I45","v":594}]
[null,"SUB-TOTAL",{"$nulls":6},{"$f":"SUM(I45:I45)","v":594},null,{"$f":"SUM(K45:K45)","v":0},{"$f":"SUM(L45:L45)","v":0},{"$f":"SUM(M45:M45)","v":594}]
[null,"MATERIAL"]
[null,"DISCRIMINAÇÃO","UNID.","QUANT.",null,null,null,"P.UNIT.","P.TOTAL"]
[null,"Cabo de aluminio 0,6/1kv multiplexados 1x1x16 +16mm²","m",275,"ORSE","2633",null,2.15,{"$f":"ROUND(D49*H49,2)","v":591.25},null,null,{"$f":"I49","v":591.25}]
[null,"POSTE DE CONCRETO DUPLO T, 100KG, H = 8M DE ACORDO COM NBR 8451","un",4,"SINAPI","13334",null,228.33,{"$f":"ROUND(D50*H50,2)","v":913.32},null,{"$f":"I50","v":913.32}]
[null,"SUB-TOTAL",{"$nulls":6},{"$f":"SUM(I49:I50)","v":1504.57},null,{"$f":"SUM(K49:K50)","v":913.32},{"$f":"SUM(L49:L50)","v":591.25},{"$f":"SUM(M49:M50)","v":0}]
[null,"SERVIÇOS - COMPOSIÇÕES AUXILIARES"]
[null,"DISCRIMINAÇÃO","UNID.","QUANT.",null,null,null,"P.UNIT.","P.TOTAL"]
[{"$nulls":8},{"$f":"D54*H54","v":0}]
[{"$nulls":8},{"$f":"SUM(I54:I54)","v":0}]
[null,"MÃO DE OBRA"]
[null,"DISCRIMINAÇÃO","UNID.","QUANT.",null,null,null,"P.UNIT.","P.TOTAL"]
[null,"Engenheiro elétrico júnior","mês",0.05,null,null,null,5286.69,{"$f":"ROUND(D58*H58,2)","v":264.33},null,null,null,{"$f":"I58","v":264.33}]
[null,"Cadista","mês",0.05,null,null,null,1973.76,98.69,null,null,null,{"$f":"I59","v":98.69}]
[null,"Topografo","h",5,null,null,null,5.97,29.85,null,null,null,{"$f":"I60","v":29.85}]
[null,"Auxiliar de topografia","h",22.65,null,null,null,1.99,45.07,null,null,null,{"$f":"I61","v":45.07}]
[null,"Eletricista montador","h",8,null,null,null,4.1100000000000003,32.880000000000003,null,null,{"$f":"I62","v":32.880000000000003}]
[null,"Auxiliar prático","h",13,null,null,null,3.38,43.94,null,null,{"$f":"I63","v":43.94}]
[null,"Servente","h",13,null,null,null,3.09,40.17,null,{"$f":"I64","v":40.17}]
[null,"Leis Sociais: 127,96 %",{"$nulls":6},{"$f":"SUM(I58:I64)*1.2796","v":710.09},null,{"$f":"SUM(K58:K64)*1.2796","v":51.4},{"$f":"SUM(L58:L64)*1.2796","v":98.3},{"$f":"SUM(M58:M64)*1.2796","v":560.39}]
[null,"SUB-TOTAL",{"$nulls":6},{"$f":"SUM(I58:I65)","v":1265.02},null,{"$f":"SUM(K58:K65)","v":91.57},{"$f":"SUM(L58:L65)","v":175.12},{"$f":"SUM(M58:M65)","v":998.33}]
[null,"PRODUÇÃO DA EQUIPE",1,"CUSTO ",{"$nulls":4},{"$f":"I66+I55+I51+I46","v":3363.59},null,{"$f":"K66+K55+K51+K46","v":1004.89},{"$f":"L66+L55+L51+L46","v":766.37},{"$f":"M66+M55+M51+M46","v":1592.33}]
[{"$nulls":8},{"$f":"I67/C67","v":3363.59},null,{"$f":"K67/C67","v":1004.89},{"$f":"L67/C67","v":766.37},{"$f":"M67/C67","v":1592.33}]
[null,"BDI          ",22.5,"%",{"$nulls":4},{"$f":"C69/100*I68","v":756.81},null,{"$f":"C69/100*K68","v":226.1},{"$f":"C69/100*L68","v":172.43},{"$f":"C69/100*M68","v":358.27}]
[null,"TOTAL DO SERVIÇO - R$",{"$nulls":6},{"$f":"SUM(I68:I69)","v":4120.3999999999996},null,{"$f":"SUM(K68:K69)","v":1230.99},{"$f":"SUM(L68:L69)","v":938.8},{"$f":"SUM(M68:M69)","v":1950.6}]
[]
[]
[]
[]
[]
[]
[null,"COMPOSIÇÃO PARA ESTRUTURA IM-1"]
[null,"DISCRIMINAÇÃO","CÓDIGO CELPE","CÓDIGO","FONTE","UNID.","QUANT.","P.UNIT.","P.TOTAL"]
[null,"Arruela quadrada aço 38 F18,00","A-2",379,"SINAPI","unid.",1,2.06,{"$f":" ROUND(G79 * H79,2)","v":2.06}]
[null,"Fita isolante preta 19x20mm (Fase A)","A-15-3",20111,"SINAPI","unid.",{"$f":" 0.25 /20","v":1.2500000000000001E-2},5,{"$f":" ROUND(G80 * H80,2)","v":0.06}]
[null,"Fita isol. EPR Autofusão preta 19mm x 10m","A-15-6",2643,"ORSE","unid.",{"$f":" 0.25 / 10","v":2.5000000000000001E-2},{"$f":"11/1.387","v":7.93},0.2]
[null,"Sapatilha cabo 9,5mm","A-25",2007,"ORSE","unid.",1,{"$f":"1.32/1.387","v":0.95},0.95]
[null,"Cabo de cobre nu 2 AWG","C-7",3249,"ORSE","kg",2.75,{"$f":"41.69/1.387","v":30.06},82.67]
[null,"Fio cobre 750 V 1,50 PT (Nota 1)","C-8",938,"SINAPI","m",0.5,0.71,0.36]
[null,"Haste terra cobre 16x2400mm","F-17",3383,"SINAPI","unid.",1,23.97,23.97]
[null,"Olhal parafuso 5000 daN","F-25",421,"SINAPI","unid.",1,12.9,12.9]
[null,"Conector atr aço reta 35,0/HA 16,0mm²","O-4",425,"SINAPI","unid.",1,2.72,2.72]
[null,"Conector cunha est. Cinza","O-8-1",10624,"ORSE","unid.",1,{"$f":"2.43/1.387","v":1.75},1.75]
[null,"Alça pref serv AL AS 25mm2","M-3",417,"SINAPI","unid.",1,2.5299999999999998,2.5299999999999998]
[null,"Grampo aço fita ¾”","M-6",9961,"ORSE","unid.",1,{"$f":"0.77/1.387","v":0.56000000000000005},0.56000000000000005]
[null,"Fita de aço inoxidável 19mmx30m","M-7",406,"SINAPI","unid.",{"$f":" 0.6 / 30","v":0.02},27.49,0.55000000000000004]
[null,"Parafuso cabeça quadrada galv. M-16 (200 mm)","F-30",431,"SINAPI","unid.",1,6.69,6.69]
[null,"Valor Total",{"$nulls":6},{"$f":"SUM(I79:I92)","v":137.97}]
[null,"BDI          ",22.5,"%",{"$nulls":4},{"$f":"C94/100*I93","v":31.04}]
[null,"TOTAL - R$",{"$nulls":6},{"$f":"SUM(I93:I94)","v":169.01}]
[]
[]
[]
[]
[null,"COMPOSIÇÃO PARA ESTRUTURA IM-A"]
[null,"DISCRIMINAÇÃO","CÓDIGO CELPE","CÓDIGO","FONTE","UNID.","QUANT.","P.UNIT.","P.TOTAL"]
[null,"Arruela quadrada aço 38 F18,00","A-2",379,"SINAPI","unid.",1,2.06,{"$f":" ROUND(G102 * H102,2)","v":2.06}]
[null,"Fita isolante preta 19x20mm (Fase A)","A-15-3",20111,"SINAPI","unid.",{"$f":" 0.25 /20","v":1.2500000000000001E-2},5,0.06]
[null,"Armação secundária aço 1 estribo c/haste","F-3-1",1094,"SINAPI","unid.",1,9.06,9.06]
[null,"Isolador roldana porcelana R-1350-2","I-3",3398,"SINAPI","unid.",1,5.52,5.52]
[null,"Laço preformado roldana","M-13",417,"SINAPI","unid.",1,2.5299999999999998,2.5299999999999998]
[null,"Parafuso cabeça quadrada galv. M-16 (200 mm)","F-30",431,"SINAPI","unid.",1,6.69,6.69]
[null,"Valor Total",{"$nulls":6},{"$f":"SUM(I102:I107)","v":25.92}]
[null,"BDI          ",22.5,"%",{"$nulls":4},{"$f":"C109/100*I108","v":5.83}]
[null,"TOTAL - R$",{"$nulls":6},{"$f":"SUM(I108:I109)","v":31.75}]

{"sheet":"DESLOCAMENTOS","index":6,"n_rows":27,"n_cols":8,"rows_kept":27,"cut":false,"hidden":true,"merged":[]}
["CIDADE","PERFURAÇÃO","INSTALAÇÃO","TOTAL","RODOVIÁRIO","VICINAL","TEMPO UNITÁRIO","TEMPO TOTAL"]
["AFRÂNIO",2,null,{"$f":"B2+C2","v":2},106,20,{"$f":"(2*E2)/60+(2*F2)/40","v":4.53},{"$f":"G2*D2","v":9.06}]
["ARARIPINA",4,2,{"$f":"B3+C3","v":6},271,20,{"$f":"(2*E3)/60+(2*F3)/40","v":10.029999999999999},{"$f":"G3*D3","v":60.18}]
["BODOCÓ",14,null,14,250,20,9.33,130.62]
["CABROBÓ",7,1,8,182,20,7.07,56.56]
["CEDRO",3,null,3,300,20,11,33]
["DORMENTES",3,4,7,152,20,6.07,42.49]
["EXU",20,null,20,280,20,10.33,206.6]
["GRANITO",14,10,24,275,20,10.17,244.08]
["IPUBI",1,null,1,255,20,9.5,9.5]
["LAGOA GRANDE",8,1,9,47,20,2.57,23.13]
["MIRANDIBA",8,null,8,312,20,11.4,91.2]
["MOREILÂNDIA",6,null,6,314,20,11.47,68.819999999999993]
["OROCÓ",4,null,4,144,20,5.8,23.2]
["OURICURI",17,3,20,211,20,8.0299999999999994,160.6]
["PARNAMIRIM",4,1,5,184,20,7.13,35.65]
["PETROLINA",6,8,14,0,20,{"$f":"(2*E17)/60+(2*F17)/40","v":1},14]
["SALGUEIRO",2,null,2,235,20,8.83,17.66]
["SANTA CRUZ",2,null,2,158,20,6.27,12.54]
["SANTA FILOMENA",3,null,3,164,20,6.47,19.41]
["SANTA MARIA DA BOA VISTA",4,1,5,107,20,4.57,22.85]
["SÃO JOSÉ DO BELMONTE",3,null,3,328,20,11.93,35.79]
["SERRITA",7,null,7,288,20,10.6,74.2]
["TERRA NOVA",3,null,3,219,20,8.3000000000000007,24.9]
["VERDEJANTE",3,null,3,277,20,{"$f":"(2*E25)/60+(2*F25)/40","v":10.23},{"$f":"G25*D25","v":30.69}]
[null,null,null,{"$f":"SUM(D2:D25)","v":179},null,null,null,{"$f":"SUM(H2:H25)","v":1446.73}]
[{"$nulls":6},"MÉDIA",{"$f":"H26/D26","v":8.08}]

{"sheet":"RESUMO","index":7,"n_rows":42,"n_cols":10,"rows_kept":42,"cut":false,"hidden":true,"merged":[]}
["ct 066"]
["4.13.1","poste","unid",{"$f":"4*160","v":640},{"$f":"'CPU POÇOS'!K32/4","v":307.75},{"$f":"D2*E2","v":196960}]
["4.13.2","rede","m",{"$f":"200*160","v":32000},{"$f":"'CPU POÇOS'!L32/200","v":3.97},{"$f":"D3*E3","v":127040}]
["4.13.3","projeto","unid",{"$f":"1*160","v":160},{"$f":"'CPU POÇOS'!M32","v":1950.6},{"$f":"D4*E4","v":312096}]
[{"$nulls":5},{"$f":"SUM(F2:F4)","v":636096}]
[{"$nulls":5},4880.68]
[{"$nulls":5},{"$f":"F5/160","v":3975.6}]
["ct 060"]
["4.13.1","poste","unid",{"$f":"4*61.25","v":245},{"$f":"E2","v":307.75},{"$f":"D9*E9","v":75398.75}]
["4.13.2","rede","m",{"$f":"200*61.25","v":12250},{"$f":"E3","v":3.97},{"$f":"D10*E10","v":48632.5}]
["4.13.3","projeto","unid",{"$f":"1*61.25","v":61.25},{"$f":"E4","v":1950.6},{"$f":"D11*E11","v":119474.25}]
[{"$nulls":5},{"$f":"SUM(F9:F11)","v":243505.5}]
[{"$nulls":5},4880.68]
[{"$nulls":5},{"$f":"F12/61.25","v":3975.6}]
[]
["ct 066 "]
["6.1.1","poste","unid",{"$f":"5*10","v":50},{"$f":"'CPU POÇOS'!K70/5","v":246.2},{"$f":"D17*E17","v":12310}]
["6.1.2","rede","m",{"$f":"250*10","v":2500},{"$f":"'CPU POÇOS'!L70/250","v":3.76},{"$f":"D18*E18","v":9400}]
["6.1.3","projeto","unid",{"$f":"1*10","v":10},{"$f":"'CPU POÇOS'!M70","v":1950.6},{"$f":"D19*E19","v":19506}]
[{"$nulls":5},{"$f":"SUM(F17:F19)","v":41216}]
[{"$nulls":5},5315.24]
[{"$nulls":5},{"$f":"F20/10","v":4121.6000000000004}]
{"$rows_empty":19}
[{"$nulls":9},184852]

{"sheet":"VEICULOS","index":8,"n_rows":44,"n_cols":4,"rows_kept":44,"cut":false,"hidden":false,"merged":[[2,1,2,3],[0,1,0,3],[1,1,1,3]]}
[null,"CODEVASF - 1.4"]
[null,"Perfuração e Instalação Poços Tubulares, no Estado de Pernambuco."]
[null,"Saveiro Robust 1.6 Total Flex 8V"]
[null,"A","Depreciação mensal do equipamento"]
[null,"A1","Preço de Aquisição ",48809]
[null,"A2","Tempo previsto de vida útil (meses)",48]
[null,"A3","Previsão de recup. Na venda do bem usado",0.4]
[null,"A4","Custo mensal [A1-(A3xA1)]/A2",610.11]
[null,"B","Juros pelo Capital empregado"]
[null,"B1","Taxa mensal de Juros ",0.05]
[null,"B2","Juros s/depreciação/aluguel (B1xA4)",30.51]
[null,"C","Conservação e manutenção "]
[null,"C1","Taxa de gastos s/a deprec. Inc. seguros (%)",1]
[null,"C2","Incidência mensal (C1xA4)",610.11]
[null,"D","Combustível"]
[null,"D1","Média mensal de quilômetro por veículo",3000]
["COT. 18","D2","Preço do litro de combustível",4.79]
[null,"D3","Quilômetros rodados com um litro combustivel",10]
[null,"D4","Combustivel    (D1/D3)*D2",1437]
[null,"E","Lubrificantes"]
[null,"E1","Quilometragem do Contrato ",36000]
[null,"E2","Franquia por troca de óleo (km)",5000]
[null,"E3","Preço do litro de óleo",13.44]
[null,"E4","Quantidade de litros de óleo por troca",3.5]
[null,"E5","Quantidade de dias do Contrato",365]
[null,"E6","Lubrificantes  E = (E1*E3*E4*30)/E2*E5",27.84]
[null,"F","Pneus"]
[null,"F1","Quilometragem do Contrato ",36000]
[null,"F2","Vida do Pneu em quilômetros",45000]
[null,"F3","Quantidade de pneus",5]
[null,"F4","Preço do Pneu",334.37]
[null,"F5","Quantidade de dias do contrato ",365]
[null,"F6","Pneus = (F1*F3*F4*30)/(F2*F5)",109.93]
[null,"G","Motorista"]
[null,"G1","Salário com encargos sociais",0]
[null,"H","Custo Mensal"," "]
[null,null,"Sem Motorista",2825.5]
[null,null,"Com Motorista"]
[null,"I","Custo Direto p/ km Rodado"]
[null,null,"Sem Motorista",0.94]
[null,null,"Com Motorista"]
[null,"J","Preço cobrado c/BDI"," "]
[null,"J1","Sem Motorista",2825.5]
[null,"J2","Com Motorista",0]

{"sheet":"BDI","index":9,"n_rows":36,"n_cols":10,"rows_kept":36,"cut":false,"hidden":false,"merged":[[5,1,5,4],[6,1,6,4],[5,6,5,9],[6,6,6,9],[1,1,3,9]]}
[]
[]
[]
[]
[]
[null,"DETALHAMENTO DO BDI - SERVIÇOS",{"$nulls":4},"DETALHAMENTO DO BDI - FORNECIMENTO"]
[null,"NÃO DESONERADO",{"$nulls":4},"NÃO DESONERADO"]
[null,"Item","Descrição dos serviços","Preço de Venda (%)","Custo Direto (%)",null,"Item","Descrição dos serviços","Preço de Venda (%)","Custo Direto (%)"]
[]
[null,1,"Administração Central (A)",null,3.4299999999999997E-2,null,1,"Administração Central (A)",null,1.4999999999999999E-2]
[]
[null,2,"Impostos e Taxas (I)",8.6499999999999994E-2,null,null,2,"Impostos e Taxas (I)",3.6499999999999998E-2]
[null,"2.1","ISS",0.05,null,null,"2.1","ISS",0]
[null,"2.2","PIS",6.4999999999999997E-3,null,null,"2.2","PIS",6.4999999999999997E-3]
[null,"2.3","Cofins",0.03,null,null,"2.3","Cofins",0.03]
[null,"2.4","CPRB",0,null,null,"2.4","CPRB",0]
[]
[null,"3","Risco, seguro e garantia (R) ",null,1.2500000000000001E-2,null,"3","Risco, seguro e garantia (R) ",null,8.6E-3]
[null,"3.1","Risco",null,0.01,null,"3.1","Risco",null,5.5999999999999999E-3]
[null,"3.2","Seguro + Garantia",null,2.5000000000000001E-3,null,"3.2","Seguro + Garantia",null,3.0000000000000001E-3]
[]
[null,4,"Despesas Financeiras (DF)",null,8.5000000000000006E-3,null,4,"Despesas Financeiras (DF)",null,8.5000000000000006E-3]
[]
[null,5,"Lucro (L)",null,6.7400000000000002E-2,null,5,"Lucro (L)",null,0.04]
[]
[null,null,"BDI* (%)",null,0.2336,null,null,"BDI* (%)",null,0.1143]
[]
[]
[]
[null,null,"BDI (%) - ADOTADO",null,0.2336,null,null,"BDI (%) - ADOTADO",null,0.1143]
[]
[null,"AC = ","taxa de rateio da Administração Central",null,3.4299999999999997E-2,null,"AC = ","taxa de rateio da Administração Central",null,1.4999999999999999E-2]
[null,"I =","taxa de tributos",null,8.6499999999999994E-2,null,"I =","taxa de tributos",null,3.6499999999999998E-2]
[null,"R = ","taxa de risco, seguro e garantia",null,1.2500000000000001E-2,null,"R = ","taxa de risco, seguro e garantia",null,8.6E-3]
[null,"DF = ","taxa das despesas financeiras",null,8.5000000000000006E-3,null,"DF = ","taxa das despesas financeiras",null,8.5000000000000006E-3]
[null,"L = ","taxa de lucro",null,6.7400000000000002E-2,null,"L = ","taxa de lucro",null,0.04]

{"sheet":"Encargos Sociais","index":10,"n_rows":43,"n_cols":9,"rows_kept":43,"cut":false,"hidden":false,"merged":[[37,1,37,4],[38,1,38,4],[39,1,39,4],[40,0,40,4],[42,0,42,4],[36,0,36,8],[15,0,15,7],[16,1,16,4],[27,0,27,4],[28,1,28,8],[29,1,29,4],[30,1,30,4],[31,1,31,4],[32,1,32,4],[33,1,33,4],[34,1,34,4],[35,0,35,4],[14,0,14,4],[0,0,1,8],[2,0,3,4],[2,5,2,6],[2,7,2,8],[4,1,4,4]]}
["DETALHAMENTO DOS ENCARGOS SOCIAIS"]
[]
["DISCRIMINAÇÃO",{"$nulls":4},"SEM DESONERAÇÃO",null,"COM DESONERAÇÃO"]
[{"$nulls":5},"HORISTA","MESALISTA","HORISTA","MESALISTA"]
["A","GRUPO A"]
["A1","INSS",null,null,null,0.2,0.2,"0,00%","0,00%"]
["A2","Sesi",null,null,null,1.4999999999999999E-2,1.4999999999999999E-2,1.4999999999999999E-2,1.4999999999999999E-2]
["A3","Senai",null,null,null,0.01,0.01,0.01,0.01]
["A4","Incra",null,null,null,2E-3,2E-3,2E-3,2E-3]
["A5","Sebrae",null,null,null,6.0000000000000001E-3,6.0000000000000001E-3,6.0000000000000001E-3,6.0000000000000001E-3]
["A6","Salário Educação ",null,null,null,2.5000000000000001E-2,2.5000000000000001E-2,2.5000000000000001E-2,2.5000000000000001E-2]
["A7","Seguro Contra Acidente de Trabalho",null,null,null,0.03,0.03,0.03,0.03]
["A8","FGTS",null,null,null,0.08,0.08,0.08,0.08]
["A9","Seconci",null,null,null,"0,00%","0,00%","0,00%","0,00%"]
["SUBTOTAL DE \"A\"",{"$nulls":4},0.36799999999999999,0.36799999999999999,0.16800000000000001,0.16800000000000001]
[]
["B","GRUPO B"]
["B1","Repouso Semanal Remunerado",null,null,null,0.18060000000000001,"NÃO INCIDE",0.18060000000000001,"NÃO INCIDE"]
["B2","Feriados",null,null,null,4.3299999999999998E-2,"NÃO INCIDE",4.3299999999999998E-2,"NÃO INCIDE"]
["B3","Auxílio - Enfermidade",null,null,null,9.2999999999999992E-3,7.1000000000000004E-3,9.2999999999999992E-3,7.1000000000000004E-3]
["B4","13º Salário",null,null,null,0.1086,8.3299999999999999E-2,0.1086,8.3299999999999999E-2]
["B5","Licença Paternidade",null,null,null,6.9999999999999999E-4,5.9999999999999995E-4,6.9999999999999999E-4,5.9999999999999995E-4]
["B6","Faltas Justificadas",null,null,null,7.1999999999999998E-3,5.5999999999999999E-3,7.1999999999999998E-3,5.5999999999999999E-3]
["B7","Dias de Chuvas",null,null,null,2.18E-2,"NÃO INCIDE",2.18E-2,"NÃO INCIDE"]
["B8","Auxílio Acidente de Trabalho",null,null,null,1.1000000000000001E-3,8.9999999999999998E-4,1.1000000000000001E-3,8.9999999999999998E-4]
["B9","Férias Gozadas",null,null,null,7.6899999999999996E-2,5.8999999999999997E-2,7.6899999999999996E-2,5.8999999999999997E-2]
["B10","Salário Maternidade",null,null,null,2.9999999999999997E-4,2.0000000000000001E-4,2.9999999999999997E-4,2.0000000000000001E-4]
["SUBTOTAL DE  \"B\"",{"$nulls":4},0.44979999999999998,0.15670000000000001,0.44979999999999998,0.15670000000000001]
[]
["C","GRUPO C"]
["C1","Aviso Prévio Indenizado",null,null,null,4.8300000000000003E-2,3.7100000000000001E-2,4.8300000000000003E-2,3.7100000000000001E-2]
["C2","Aviso Prévio Trabalhado",null,null,null,1.1000000000000001E-3,8.9999999999999998E-4,1.1000000000000001E-3,8.9999999999999998E-4]
["C3","Férias Indenizadas",null,null,null,5.96E-2,4.58E-2,5.96E-2,4.58E-2]
["C4","Depósito Recisão Sem Justa Causa",null,null,null,4.9599999999999998E-2,3.8100000000000002E-2,4.9599999999999998E-2,3.8100000000000002E-2]
["C5","Indenização Adicional",null,null,null,4.1000000000000003E-3,3.0999999999999999E-3,4.1000000000000003E-3,3.0999999999999999E-3]
["SUBTOTAL DE \"C\"",{"$nulls":4},0.16270000000000001,0.125,0.16270000000000001,0.125]
[]
["D","GRUPO D"]
["D1","Reincidência de Grupo A sobre Grupo B",null,null,null,0.16550000000000001,5.7700000000000001E-2,7.5600000000000001E-2,2.63E-2]
["D2","Reincidência de Grupo A sobre Aviso Prévio Trabalhado e Reincidência do FGTS sobre Aviso Prévio Indenizado",null,null,null,4.3E-3,3.3E-3,4.0000000000000001E-3,3.0999999999999999E-3]
["SUBTOTAL DE \"D\"",{"$nulls":4},0.16980000000000001,6.0999999999999999E-2,7.9600000000000004E-2,2.9399999999999999E-2]
[]
["TOTAIS DE ENCARGOS SOCIAIS",{"$nulls":4},1.1503000000000001,0.7107,0.86009999999999998,0.47910000000000003]